Department Family,Entity,Date,Expense Type,Expense Area,Supplier,SME,Transaction Number,Amount,Description,Expenditure Type
Land Registry,Land Registry,09/03/2015,Computer Equipment Maintenance,IS Service Delivery,ANS Group Plc,Large,1101424,"87,984.44",Computer Equipment Maintenance,Administration
Land Registry,Land Registry,20/03/2015,Stationery National Contracts,Birkenhead Office,Banner Business Services Ltd,Large,1103425,"2,320.05",Stationery,Administration
Land Registry,Land Registry,20/03/2015,Stationery National Contracts,Birkenhead Office,Banner Business Services Ltd,Large,1103425,452.31,Stationery,Administration
Land Registry,Land Registry,20/03/2015,Stationery National Contracts,Coventry Office,Banner Business Services Ltd,Large,1103425,"5,509.63",Stationery,Administration
Land Registry,Land Registry,20/03/2015,Stationery National Contracts,Coventry Office,Banner Business Services Ltd,Large,1103425,"1,101.91",Stationery,Administration
Land Registry,Land Registry,20/03/2015,Stationery National Contracts,Croydon Office,Banner Business Services Ltd,Large,1103425,"1,281.79",Stationery,Administration
Land Registry,Land Registry,20/03/2015,Stationery National Contracts,Croydon Office,Banner Business Services Ltd,Large,1103425,243.01,Stationery,Administration
Land Registry,Land Registry,20/03/2015,Stationery National Contracts,Durham Office,Banner Business Services Ltd,Large,1103425,"3,222.76",Stationery,Administration
Land Registry,Land Registry,20/03/2015,Stationery National Contracts,Durham Office,Banner Business Services Ltd,Large,1103425,644.61,Stationery,Administration
Land Registry,Land Registry,20/03/2015,Stationery National Contracts,Gloucester Office,Banner Business Services Ltd,Large,1103425,"1,365.27",Stationery,Administration
Land Registry,Land Registry,20/03/2015,Stationery National Contracts,Gloucester Office,Banner Business Services Ltd,Large,1103425,269.30,Stationery,Administration
Land Registry,Land Registry,20/03/2015,Stationery National Contracts,Hull Office,Banner Business Services Ltd,Large,1103425,"1,633.11",Stationery,Administration
Land Registry,Land Registry,20/03/2015,Stationery National Contracts,Hull Office,Banner Business Services Ltd,Large,1103425,326.63,Stationery,Administration
Land Registry,Land Registry,20/03/2015,Stationery National Contracts,Fylde Office,Banner Business Services Ltd,Large,1103425,946.81,Stationery,Administration
Land Registry,Land Registry,20/03/2015,Stationery National Contracts,Fylde Office,Banner Business Services Ltd,Large,1103425,189.36,Stationery,Administration
Land Registry,Land Registry,20/03/2015,Stationery National Contracts,Leicester Office,Banner Business Services Ltd,Large,1103425,"1,441.84",Stationery,Administration
Land Registry,Land Registry,20/03/2015,Stationery National Contracts,Leicester Office,Banner Business Services Ltd,Large,1103425,284.88,Stationery,Administration
Land Registry,Land Registry,20/03/2015,Stationery National Contracts,Nottingham Office,Banner Business Services Ltd,Large,1103425,"2,234.02",Stationery,Administration
Land Registry,Land Registry,20/03/2015,Stationery National Contracts,Nottingham Office,Banner Business Services Ltd,Large,1103425,446.80,Stationery,Administration
Land Registry,Land Registry,20/03/2015,Stationery National Contracts,Peterborough Office,Banner Business Services Ltd,Large,1103425,"2,048.30",Stationery,Administration
Land Registry,Land Registry,20/03/2015,Stationery National Contracts,Peterborough Office,Banner Business Services Ltd,Large,1103425,409.65,Stationery,Administration
Land Registry,Land Registry,20/03/2015,Stationery National Contracts,Plymouth Office,Banner Business Services Ltd,Large,1103425,"1,877.02",Stationery,Administration
Land Registry,Land Registry,20/03/2015,Stationery National Contracts,Plymouth Office,Banner Business Services Ltd,Large,1103425,375.40,Stationery,Administration
Land Registry,Land Registry,20/03/2015,Stationery National Contracts,Telford Office,Banner Business Services Ltd,Large,1103425,886.88,Stationery,Administration
Land Registry,Land Registry,20/03/2015,Stationery National Contracts,Telford Office,Banner Business Services Ltd,Large,1103425,168.55,Stationery,Administration
Land Registry,Land Registry,20/03/2015,Stationery National Contracts,Wales Office,Banner Business Services Ltd,Large,1103425,"6,817.34",Stationery,Administration
Land Registry,Land Registry,20/03/2015,Stationery National Contracts,Wales Office,Banner Business Services Ltd,Large,1103425,"1,363.47",Stationery,Administration
Land Registry,Land Registry,20/03/2015,Stationery National Contracts,Weymouth Office,Banner Business Services Ltd,Large,1103425,"1,284.29",Stationery,Administration
Land Registry,Land Registry,20/03/2015,Stationery National Contracts,Weymouth Office,Banner Business Services Ltd,Large,1103425,256.83,Stationery,Administration
Land Registry,Land Registry,20/03/2015,Stationery National Contracts,Land Charges,Banner Business Services Ltd,Large,1103425,182.02,Stationery,Administration
Land Registry,Land Registry,20/03/2015,Stationery National Contracts,Land Charges,Banner Business Services Ltd,Large,1103425,36.43,Stationery,Administration
Land Registry,Land Registry,20/03/2015,Stationery National Contracts,Chief Executives Office,Banner Business Services Ltd,Large,1103425,33.21,Stationery,Administration
Land Registry,Land Registry,20/03/2015,Stationery National Contracts,Chief Executives Office,Banner Business Services Ltd,Large,1103425,6.64,Stationery,Administration
Land Registry,Land Registry,20/03/2015,Stationery National Contracts,HR,Banner Business Services Ltd,Large,1103425,172.42,Stationery,Administration
Land Registry,Land Registry,20/03/2015,Stationery National Contracts,HR,Banner Business Services Ltd,Large,1103425,34.48,Stationery,Administration
Land Registry,Land Registry,20/03/2015,Stationery National Contracts,Finance Group,Banner Business Services Ltd,Large,1103425,138.16,Stationery,Administration
Land Registry,Land Registry,20/03/2015,Stationery National Contracts,Finance Group,Banner Business Services Ltd,Large,1103425,27.63,Stationery,Administration
Land Registry,Land Registry,20/03/2015,Stationery National Contracts,Corp Procurement,Banner Business Services Ltd,Large,1103425,9.83,Stationery,Administration
Land Registry,Land Registry,20/03/2015,Stationery National Contracts,Corp Procurement,Banner Business Services Ltd,Large,1103425,1.96,Stationery,Administration
Land Registry,Land Registry,20/03/2015,Stationery National Contracts,Central Operations Group,Banner Business Services Ltd,Large,1103425,160.06,Stationery,Administration
Land Registry,Land Registry,20/03/2015,Stationery National Contracts,Central Operations Group,Banner Business Services Ltd,Large,1103425,32.00,Stationery,Administration
Land Registry,Land Registry,20/03/2015,Stationery National Contracts,Research & Data Mining,Banner Business Services Ltd,Large,1103425,50.10,Stationery,Administration
Land Registry,Land Registry,20/03/2015,Stationery National Contracts,Research & Data Mining,Banner Business Services Ltd,Large,1103425,10.02,Stationery,Administration
Land Registry,Land Registry,20/03/2015,Stationery National Contracts,Projects and Programme Centre,Banner Business Services Ltd,Large,1103425,10.47,Stationery,Administration
Land Registry,Land Registry,20/03/2015,Stationery National Contracts,Projects and Programme Centre,Banner Business Services Ltd,Large,1103425,2.11,Stationery,Administration
Land Registry,Land Registry,20/03/2015,Stationery National Contracts,Internal Solutions Group,Banner Business Services Ltd,Large,1103425,315.71,Stationery,Administration
Land Registry,Land Registry,20/03/2015,Stationery National Contracts,Internal Solutions Group,Banner Business Services Ltd,Large,1103425,63.13,Stationery,Administration
Land Registry,Land Registry,20/03/2015,Stationery National Contracts,Governance & Policy,Banner Business Services Ltd,Large,1103425,21.18,Stationery,Administration
Land Registry,Land Registry,20/03/2015,Stationery National Contracts,Governance & Policy,Banner Business Services Ltd,Large,1103425,4.23,Stationery,Administration
Land Registry,Land Registry,20/03/2015,Stationery National Contracts,IS Service Delivery,Banner Business Services Ltd,Large,1103425,"1,640.09",Stationery,Administration
Land Registry,Land Registry,20/03/2015,Stationery National Contracts,IS Service Delivery,Banner Business Services Ltd,Large,1103425,328.00,Stationery,Administration
Land Registry,Land Registry,20/03/2015,Stationery National Contracts,Central Facilities Management Team,Banner Business Services Ltd,Large,1103425,43.10,Stationery,Administration
Land Registry,Land Registry,20/03/2015,Stationery National Contracts,Central Facilities Management Team,Banner Business Services Ltd,Large,1103425,8.62,Stationery,Administration
Land Registry,Land Registry,20/03/2015,Stationery National Contracts,International Unit,Banner Business Services Ltd,Large,1103425,32.01,Stationery,Administration
Land Registry,Land Registry,20/03/2015,Waste Disposal,Central Facilities Management Team,Banner Business Services Ltd,Large,1103425,"11,108.00",Waste Disposal,Administration
Land Registry,Land Registry,25/03/2015,Employment Agency Staff Costs,Prog: Digital by Default,Capita Business Services Ltd,SME,1101946,"24,666.90",Employment Agency Staff Costs,Administration
Land Registry,Land Registry,25/03/2015,Employment Agency Staff Costs,Prog: Digital by Default,Capita Business Services Ltd,SME,1101946,"4,933.38",Employment Agency Staff Costs,Administration
Land Registry,Land Registry,31/03/2015,IS Training,Director of Information Systems,Capita Business Services Ltd,SME,1104430,"30,342.57",IS Training,Administration
Land Registry,Land Registry,17/03/2015,Electricity,Birkenhead Office,Carillion Services Ltd,Large,1102722,"5,229.48",Electricity,Administration
Land Registry,Land Registry,17/03/2015,Electricity,Coventry Office,Carillion Services Ltd,Large,1102722,"7,848.44",Electricity,Administration
Land Registry,Land Registry,17/03/2015,Electricity,Croydon Office,Carillion Services Ltd,Large,1102722,"7,220.68",Electricity,Administration
Land Registry,Land Registry,17/03/2015,Electricity,Durham Office,Carillion Services Ltd,Large,1102722,"4,821.89",Electricity,Administration
Land Registry,Land Registry,17/03/2015,Electricity,Gloucester Office,Carillion Services Ltd,Large,1102722,"5,307.68",Electricity,Administration
Land Registry,Land Registry,17/03/2015,Electricity,Hull Office,Carillion Services Ltd,Large,1102722,"7,088.39",Electricity,Administration
Land Registry,Land Registry,17/03/2015,Electricity,Fylde Office,Carillion Services Ltd,Large,1102722,"5,067.51",Electricity,Administration
Land Registry,Land Registry,17/03/2015,Electricity,Leicester Office,Carillion Services Ltd,Large,1102722,"4,469.51",Electricity,Administration
Land Registry,Land Registry,17/03/2015,Electricity,Nottingham Office,Carillion Services Ltd,Large,1102722,"10,537.18",Electricity,Administration
Land Registry,Land Registry,17/03/2015,Electricity,Telford Office,Carillion Services Ltd,Large,1102722,"6,245.40",Electricity,Administration
Land Registry,Land Registry,17/03/2015,Electricity,Wales Office,Carillion Services Ltd,Large,1102722,"5,052.36",Electricity,Administration
Land Registry,Land Registry,17/03/2015,Electricity,Weymouth Office,Carillion Services Ltd,Large,1102722,"3,592.79",Electricity,Administration
Land Registry,Land Registry,17/03/2015,Electricity,Governance & Policy,Carillion Services Ltd,Large,1102722,"43,795.89",Electricity,Administration
Land Registry,Land Registry,17/03/2015,Electricity,Gloucester Computer Centre,Carillion Services Ltd,Large,1102722,"26,877.41",Electricity,Administration
Land Registry,Land Registry,17/03/2015,Electricity,Dir: HR,Carillion Services Ltd,Large,1102722,976.67,Electricity,Administration
Land Registry,Land Registry,17/03/2015,FF&F:Maintenance,Birkenhead Office,Carillion Services Ltd,Large,1102504,23.90,"Furnature, Fixtures & Fittings Maintenance",Administration
Land Registry,Land Registry,17/03/2015,FF&F:Maintenance,Coventry Office,Carillion Services Ltd,Large,1102504,23.90,"Furnature, Fixtures & Fittings Maintenance",Administration
Land Registry,Land Registry,17/03/2015,FF&F:Maintenance,Croydon Office,Carillion Services Ltd,Large,1102504,23.90,"Furnature, Fixtures & Fittings Maintenance",Administration
Land Registry,Land Registry,17/03/2015,FF&F:Maintenance,Durham Office,Carillion Services Ltd,Large,1102504,23.90,"Furnature, Fixtures & Fittings Maintenance",Administration
Land Registry,Land Registry,17/03/2015,FF&F:Maintenance,Gloucester Office,Carillion Services Ltd,Large,1102504,23.90,"Furnature, Fixtures & Fittings Maintenance",Administration
Land Registry,Land Registry,17/03/2015,FF&F:Maintenance,Hull Office,Carillion Services Ltd,Large,1102504,23.90,"Furnature, Fixtures & Fittings Maintenance",Administration
Land Registry,Land Registry,17/03/2015,FF&F:Maintenance,Fylde Office,Carillion Services Ltd,Large,1102504,23.90,"Furnature, Fixtures & Fittings Maintenance",Administration
Land Registry,Land Registry,17/03/2015,FF&F:Maintenance,Leicester Office,Carillion Services Ltd,Large,1102504,47.80,"Furnature, Fixtures & Fittings Maintenance",Administration
Land Registry,Land Registry,17/03/2015,FF&F:Maintenance,Nottingham Office,Carillion Services Ltd,Large,1102504,23.90,"Furnature, Fixtures & Fittings Maintenance",Administration
Land Registry,Land Registry,17/03/2015,FF&F:Maintenance,Peterborough Office,Carillion Services Ltd,Large,1102504,23.92,"Furnature, Fixtures & Fittings Maintenance",Administration
Land Registry,Land Registry,17/03/2015,FF&F:Maintenance,Telford Office,Carillion Services Ltd,Large,1102504,23.90,"Furnature, Fixtures & Fittings Maintenance",Administration
Land Registry,Land Registry,17/03/2015,FF&F:Maintenance,Wales Office,Carillion Services Ltd,Large,1102504,47.80,"Furnature, Fixtures & Fittings Maintenance",Administration
Land Registry,Land Registry,17/03/2015,FF&F:Maintenance,Weymouth Office,Carillion Services Ltd,Large,1102504,23.90,"Furnature, Fixtures & Fittings Maintenance",Administration
Land Registry,Land Registry,17/03/2015,FF&F:Maintenance,Governance & Policy,Carillion Services Ltd,Large,1102504,71.70,"Furnature, Fixtures & Fittings Maintenance",Administration
Land Registry,Land Registry,17/03/2015,FF&F:Maintenance,Gloucester Computer Centre,Carillion Services Ltd,Large,1102504,23.90,"Furnature, Fixtures & Fittings Maintenance",Administration
Land Registry,Land Registry,17/03/2015,"FF&F:Purchases <1,000",Birkenhead Office,Carillion Services Ltd,Large,1102516,201.30,"Furniture, Fixtures & Fittings Purchases",Administration
Land Registry,Land Registry,17/03/2015,"FF&F:Purchases <1,000",Coventry Office,Carillion Services Ltd,Large,1102516,828.74,"Furniture, Fixtures & Fittings Purchases",Administration
Land Registry,Land Registry,17/03/2015,"FF&F:Purchases <1,000",Durham Office,Carillion Services Ltd,Large,1102516,"2,365.24","Furniture, Fixtures & Fittings Purchases",Administration
Land Registry,Land Registry,17/03/2015,"FF&F:Purchases <1,000",Gloucester Office,Carillion Services Ltd,Large,1102516,"1,908.50","Furniture, Fixtures & Fittings Purchases",Administration
Land Registry,Land Registry,17/03/2015,"FF&F:Purchases <1,000",Hull Office,Carillion Services Ltd,Large,1102516,"1,149.21","Furniture, Fixtures & Fittings Purchases",Administration
Land Registry,Land Registry,17/03/2015,"FF&F:Purchases <1,000",Fylde Office,Carillion Services Ltd,Large,1102516,"3,852.01","Furniture, Fixtures & Fittings Purchases",Administration
Land Registry,Land Registry,17/03/2015,"FF&F:Purchases <1,000",Leicester Office,Carillion Services Ltd,Large,1102516,32.96,"Furniture, Fixtures & Fittings Purchases",Administration
Land Registry,Land Registry,17/03/2015,"FF&F:Purchases <1,000",Nottingham Office,Carillion Services Ltd,Large,1102516,485.92,"Furniture, Fixtures & Fittings Purchases",Administration
Land Registry,Land Registry,17/03/2015,"FF&F:Purchases <1,000",Telford Office,Carillion Services Ltd,Large,1102516,895.94,"Furniture, Fixtures & Fittings Purchases",Administration
Land Registry,Land Registry,17/03/2015,"FF&F:Purchases <1,000",Wales Office,Carillion Services Ltd,Large,1102516,"1,934.61","Furniture, Fixtures & Fittings Purchases",Administration
Land Registry,Land Registry,17/03/2015,"FF&F:Purchases <1,000",Weymouth Office,Carillion Services Ltd,Large,1102516,"1,800.05","Furniture, Fixtures & Fittings Purchases",Administration
Land Registry,Land Registry,17/03/2015,"FF&F:Purchases <1,000",Governance & Policy,Carillion Services Ltd,Large,1102516,"1,838.45","Furniture, Fixtures & Fittings Purchases",Administration
Land Registry,Land Registry,17/03/2015,FM Ext Helpdesk,Birkenhead Office,Carillion Services Ltd,Large,1102504,469.69,Facilities External Helpdesk,Administration
Land Registry,Land Registry,17/03/2015,FM Ext Helpdesk,Coventry Office,Carillion Services Ltd,Large,1102504,953.05,Facilities External Helpdesk,Administration
Land Registry,Land Registry,17/03/2015,FM Ext Helpdesk,Croydon Office,Carillion Services Ltd,Large,1102504,565.37,Facilities External Helpdesk,Administration
Land Registry,Land Registry,17/03/2015,FM Ext Helpdesk,Durham Office,Carillion Services Ltd,Large,1102504,589.49,Facilities External Helpdesk,Administration
Land Registry,Land Registry,17/03/2015,FM Ext Helpdesk,Gloucester Office,Carillion Services Ltd,Large,1102504,590.42,Facilities External Helpdesk,Administration
Land Registry,Land Registry,17/03/2015,FM Ext Helpdesk,Hull Office,Carillion Services Ltd,Large,1102504,460.70,Facilities External Helpdesk,Administration
Land Registry,Land Registry,17/03/2015,FM Ext Helpdesk,Fylde Office,Carillion Services Ltd,Large,1102504,409.95,Facilities External Helpdesk,Administration
Land Registry,Land Registry,17/03/2015,FM Ext Helpdesk,Leicester Office,Carillion Services Ltd,Large,1102504,515.68,Facilities External Helpdesk,Administration
Land Registry,Land Registry,17/03/2015,FM Ext Helpdesk,Nottingham Office,Carillion Services Ltd,Large,1102504,"1,821.62",Facilities External Helpdesk,Administration
Land Registry,Land Registry,17/03/2015,FM Ext Helpdesk,Peterborough Office,Carillion Services Ltd,Large,1102504,601.66,Facilities External Helpdesk,Administration
Land Registry,Land Registry,17/03/2015,FM Ext Helpdesk,Telford Office,Carillion Services Ltd,Large,1102504,622.59,Facilities External Helpdesk,Administration
Land Registry,Land Registry,17/03/2015,FM Ext Helpdesk,Wales Office,Carillion Services Ltd,Large,1102504,446.36,Facilities External Helpdesk,Administration
Land Registry,Land Registry,17/03/2015,FM Ext Helpdesk,Weymouth Office,Carillion Services Ltd,Large,1102504,362.86,Facilities External Helpdesk,Administration
Land Registry,Land Registry,17/03/2015,FM Ext Helpdesk,Governance & Policy,Carillion Services Ltd,Large,1102504,"1,497.55",Facilities External Helpdesk,Administration
Land Registry,Land Registry,17/03/2015,FM Ext Helpdesk,Gloucester Computer Centre,Carillion Services Ltd,Large,1102504,547.73,Facilities External Helpdesk,Administration
Land Registry,Land Registry,17/03/2015,FM Ext Helpdesk,RFS4 - Coventry,Carillion Services Ltd,Large,1102504,7.88,Facilities External Helpdesk,Administration
Land Registry,Land Registry,17/03/2015,FM Managed Services,Birkenhead Office,Carillion Services Ltd,Large,1102504,"6,485.19",Facilities Managed Services,Administration
Land Registry,Land Registry,17/03/2015,FM Managed Services,Coventry Office,Carillion Services Ltd,Large,1102504,"7,908.38",Facilities Managed Services,Administration
Land Registry,Land Registry,17/03/2015,FM Managed Services,Croydon Office,Carillion Services Ltd,Large,1102504,"6,572.17",Facilities Managed Services,Administration
Land Registry,Land Registry,17/03/2015,FM Managed Services,Durham Office,Carillion Services Ltd,Large,1102504,"6,310.20",Facilities Managed Services,Administration
Land Registry,Land Registry,17/03/2015,FM Managed Services,Gloucester Office,Carillion Services Ltd,Large,1102504,"3,505.02",Facilities Managed Services,Administration
Land Registry,Land Registry,17/03/2015,FM Managed Services,Hull Office,Carillion Services Ltd,Large,1102504,"5,992.66",Facilities Managed Services,Administration
Land Registry,Land Registry,17/03/2015,FM Managed Services,Fylde Office,Carillion Services Ltd,Large,1102504,"6,161.69",Facilities Managed Services,Administration
Land Registry,Land Registry,17/03/2015,FM Managed Services,Leicester Office,Carillion Services Ltd,Large,1102504,"6,942.86",Facilities Managed Services,Administration
Land Registry,Land Registry,17/03/2015,FM Managed Services,Nottingham Office,Carillion Services Ltd,Large,1102504,"11,655.43",Facilities Managed Services,Administration
Land Registry,Land Registry,17/03/2015,FM Managed Services,Peterborough Office,Carillion Services Ltd,Large,1102504,"6,018.83",Facilities Managed Services,Administration
Land Registry,Land Registry,17/03/2015,FM Managed Services,Telford Office,Carillion Services Ltd,Large,1102504,"6,504.77",Facilities Managed Services,Administration
Land Registry,Land Registry,17/03/2015,FM Managed Services,Wales Office,Carillion Services Ltd,Large,1102504,"6,033.36",Facilities Managed Services,Administration
Land Registry,Land Registry,17/03/2015,FM Managed Services,Weymouth Office,Carillion Services Ltd,Large,1102504,"6,153.46",Facilities Managed Services,Administration
Land Registry,Land Registry,17/03/2015,FM Managed Services,Governance & Policy,Carillion Services Ltd,Large,1102504,"14,497.87",Facilities Managed Services,Administration
Land Registry,Land Registry,17/03/2015,FM Managed Services,Gloucester Computer Centre,Carillion Services Ltd,Large,1102504,"2,872.08",Facilities Managed Services,Administration
Land Registry,Land Registry,17/03/2015,FM Managed Services,RFS4 - Coventry,Carillion Services Ltd,Large,1102504,27.04,Facilities Managed Services,Administration
Land Registry,Land Registry,17/03/2015,Gas,Birkenhead Office,Carillion Services Ltd,Large,1102722,"2,511.62",Gas,Administration
Land Registry,Land Registry,17/03/2015,Gas,Coventry Office,Carillion Services Ltd,Large,1102722,"5,798.42",Gas,Administration
Land Registry,Land Registry,17/03/2015,Gas,Croydon Office,Carillion Services Ltd,Large,1102722,"2,804.18",Gas,Administration
Land Registry,Land Registry,17/03/2015,Gas,Durham Office,Carillion Services Ltd,Large,1102722,"2,204.61",Gas,Administration
Land Registry,Land Registry,17/03/2015,Gas,Gloucester Office,Carillion Services Ltd,Large,1102722,"2,715.78",Gas,Administration
Land Registry,Land Registry,17/03/2015,Gas,Hull Office,Carillion Services Ltd,Large,1102722,"4,306.99",Gas,Administration
Land Registry,Land Registry,17/03/2015,Gas,Fylde Office,Carillion Services Ltd,Large,1102722,"2,398.58",Gas,Administration
Land Registry,Land Registry,17/03/2015,Gas,Leicester Office,Carillion Services Ltd,Large,1102722,"4,632.56",Gas,Administration
Land Registry,Land Registry,17/03/2015,Gas,Nottingham Office,Carillion Services Ltd,Large,1102722,393.29,Gas,Administration
Land Registry,Land Registry,17/03/2015,Gas,Telford Office,Carillion Services Ltd,Large,1102722,"3,872.31",Gas,Administration
Land Registry,Land Registry,17/03/2015,Gas,Wales Office,Carillion Services Ltd,Large,1102722,"1,609.80",Gas,Administration
Land Registry,Land Registry,17/03/2015,Gas,Weymouth Office,Carillion Services Ltd,Large,1102722,"2,293.73",Gas,Administration
Land Registry,Land Registry,17/03/2015,Gas,Governance & Policy,Carillion Services Ltd,Large,1102722,"4,230.33",Gas,Administration
Land Registry,Land Registry,17/03/2015,Gas,Gloucester Computer Centre,Carillion Services Ltd,Large,1102722,636.22,Gas,Administration
Land Registry,Land Registry,17/03/2015,Gas,Dir: HR,Carillion Services Ltd,Large,1102722,"1,798.90",Gas,Administration
Land Registry,Land Registry,17/03/2015,Grounds Maintenance,Birkenhead Office,Carillion Services Ltd,Large,1102504,360.91,Grounds Maintenance,Administration
Land Registry,Land Registry,17/03/2015,Grounds Maintenance,Coventry Office,Carillion Services Ltd,Large,1102504,683.02,Grounds Maintenance,Administration
Land Registry,Land Registry,17/03/2015,Grounds Maintenance,Croydon Office,Carillion Services Ltd,Large,1102504,68.04,Grounds Maintenance,Administration
Land Registry,Land Registry,17/03/2015,Grounds Maintenance,Durham Office,Carillion Services Ltd,Large,1102504,845.33,Grounds Maintenance,Administration
Land Registry,Land Registry,17/03/2015,Grounds Maintenance,Gloucester Office,Carillion Services Ltd,Large,1102504,646.08,Grounds Maintenance,Administration
Land Registry,Land Registry,17/03/2015,Grounds Maintenance,Hull Office,Carillion Services Ltd,Large,1102504,589.61,Grounds Maintenance,Administration
Land Registry,Land Registry,17/03/2015,Grounds Maintenance,Fylde Office,Carillion Services Ltd,Large,1102504,"1,578.69",Grounds Maintenance,Administration
Land Registry,Land Registry,17/03/2015,Grounds Maintenance,Leicester Office,Carillion Services Ltd,Large,1102504,204.04,Grounds Maintenance,Administration
Land Registry,Land Registry,17/03/2015,Grounds Maintenance,Nottingham Office,Carillion Services Ltd,Large,1102504,271.08,Grounds Maintenance,Administration
Land Registry,Land Registry,17/03/2015,Grounds Maintenance,Telford Office,Carillion Services Ltd,Large,1102504,"1,113.38",Grounds Maintenance,Administration
Land Registry,Land Registry,17/03/2015,Grounds Maintenance,Wales Office,Carillion Services Ltd,Large,1102504,479.33,Grounds Maintenance,Administration
Land Registry,Land Registry,17/03/2015,Grounds Maintenance,Weymouth Office,Carillion Services Ltd,Large,1102504,744.67,Grounds Maintenance,Administration
Land Registry,Land Registry,17/03/2015,Grounds Maintenance,Governance & Policy,Carillion Services Ltd,Large,1102504,"1,544.25",Grounds Maintenance,Administration
Land Registry,Land Registry,17/03/2015,Grounds Maintenance,Gloucester Computer Centre,Carillion Services Ltd,Large,1102504,95.54,Grounds Maintenance,Administration
Land Registry,Land Registry,17/03/2015,Grounds Maintenance,Birkenhead Office,Carillion Services Ltd,Large,1102516,"1,826.00",Grounds Maintenance,Administration
Land Registry,Land Registry,17/03/2015,Grounds Maintenance,Coventry Office,Carillion Services Ltd,Large,1102516,"3,195.50",Grounds Maintenance,Administration
Land Registry,Land Registry,17/03/2015,Grounds Maintenance,Durham Office,Carillion Services Ltd,Large,1102516,"3,646.12",Grounds Maintenance,Administration
Land Registry,Land Registry,17/03/2015,Grounds Maintenance,Gloucester Office,Carillion Services Ltd,Large,1102516,"3,050.25",Grounds Maintenance,Administration
Land Registry,Land Registry,17/03/2015,Grounds Maintenance,Hull Office,Carillion Services Ltd,Large,1102516,"1,815.63",Grounds Maintenance,Administration
Land Registry,Land Registry,17/03/2015,Grounds Maintenance,Fylde Office,Carillion Services Ltd,Large,1102516,"2,023.13",Grounds Maintenance,Administration
Land Registry,Land Registry,17/03/2015,Grounds Maintenance,Leicester Office,Carillion Services Ltd,Large,1102516,"3,268.13",Grounds Maintenance,Administration
Land Registry,Land Registry,17/03/2015,Grounds Maintenance,Telford Office,Carillion Services Ltd,Large,1102516,"1,815.63",Grounds Maintenance,Administration
Land Registry,Land Registry,17/03/2015,Grounds Maintenance,Wales Office,Carillion Services Ltd,Large,1102516,"1,997.19",Grounds Maintenance,Administration
Land Registry,Land Registry,17/03/2015,Grounds Maintenance,Weymouth Office,Carillion Services Ltd,Large,1102516,"2,140.34",Grounds Maintenance,Administration
Land Registry,Land Registry,17/03/2015,Grounds Maintenance,Governance & Policy,Carillion Services Ltd,Large,1102516,"2,718.25",Grounds Maintenance,Administration
Land Registry,Land Registry,17/03/2015,Grounds Maintenance,Gloucester Computer Centre,Carillion Services Ltd,Large,1102516,"1,929.75",Grounds Maintenance,Administration
Land Registry,Land Registry,17/03/2015,Office Cleaning Expenses,Birkenhead Office,Carillion Services Ltd,Large,1102504,"6,279.81",Office Cleaning Expenses,Administration
Land Registry,Land Registry,17/03/2015,Office Cleaning Expenses,Coventry Office,Carillion Services Ltd,Large,1102504,"6,485.37",Office Cleaning Expenses,Administration
Land Registry,Land Registry,17/03/2015,Office Cleaning Expenses,Croydon Office,Carillion Services Ltd,Large,1102504,"4,659.37",Office Cleaning Expenses,Administration
Land Registry,Land Registry,17/03/2015,Office Cleaning Expenses,Durham Office,Carillion Services Ltd,Large,1102504,"6,302.02",Office Cleaning Expenses,Administration
Land Registry,Land Registry,17/03/2015,Office Cleaning Expenses,Gloucester Office,Carillion Services Ltd,Large,1102504,"7,108.35",Office Cleaning Expenses,Administration
Land Registry,Land Registry,17/03/2015,Office Cleaning Expenses,Hull Office,Carillion Services Ltd,Large,1102504,"3,883.43",Office Cleaning Expenses,Administration
Land Registry,Land Registry,17/03/2015,Office Cleaning Expenses,Fylde Office,Carillion Services Ltd,Large,1102504,"4,800.27",Office Cleaning Expenses,Administration
Land Registry,Land Registry,17/03/2015,Office Cleaning Expenses,Leicester Office,Carillion Services Ltd,Large,1102504,"4,131.40",Office Cleaning Expenses,Administration
Land Registry,Land Registry,17/03/2015,Office Cleaning Expenses,Nottingham Office,Carillion Services Ltd,Large,1102504,"6,336.90",Office Cleaning Expenses,Administration
Land Registry,Land Registry,17/03/2015,Office Cleaning Expenses,Peterborough Office,Carillion Services Ltd,Large,1102504,"3,119.54",Office Cleaning Expenses,Administration
Land Registry,Land Registry,17/03/2015,Office Cleaning Expenses,Telford Office,Carillion Services Ltd,Large,1102504,"6,510.74",Office Cleaning Expenses,Administration
Land Registry,Land Registry,17/03/2015,Office Cleaning Expenses,Wales Office,Carillion Services Ltd,Large,1102504,"4,180.64",Office Cleaning Expenses,Administration
Land Registry,Land Registry,17/03/2015,Office Cleaning Expenses,Weymouth Office,Carillion Services Ltd,Large,1102504,"4,447.23",Office Cleaning Expenses,Administration
Land Registry,Land Registry,17/03/2015,Office Cleaning Expenses,Governance & Policy,Carillion Services Ltd,Large,1102504,"9,662.60",Office Cleaning Expenses,Administration
Land Registry,Land Registry,17/03/2015,Office Cleaning Expenses,Gloucester Computer Centre,Carillion Services Ltd,Large,1102504,548.86,Office Cleaning Expenses,Administration
Land Registry,Land Registry,17/03/2015,Office Cleaning Expenses,Dir: HR,Carillion Services Ltd,Large,1102504,283.20,Office Cleaning Expenses,Administration
Land Registry,Land Registry,17/03/2015,Office Cleaning Expenses,Fylde Office,Carillion Services Ltd,Large,1102516,599.20,Office Cleaning Expenses,Administration
Land Registry,Land Registry,17/03/2015,Office Cleaning Expenses,Leicester Office,Carillion Services Ltd,Large,1102516,242.68,Office Cleaning Expenses,Administration
Land Registry,Land Registry,17/03/2015,Office Cleaning Expenses,Governance & Policy,Carillion Services Ltd,Large,1102516,101.65,Office Cleaning Expenses,Administration
Land Registry,Land Registry,17/03/2015,Office Cleaning Expenses,Dir: HR,Carillion Services Ltd,Large,1102516,"1,525.13",Office Cleaning Expenses,Administration
Land Registry,Land Registry,17/03/2015,Pest Control,Birkenhead Office,Carillion Services Ltd,Large,1102504,41.24,Pest Control,Administration
Land Registry,Land Registry,17/03/2015,Pest Control,Coventry Office,Carillion Services Ltd,Large,1102504,52.57,Pest Control,Administration
Land Registry,Land Registry,17/03/2015,Pest Control,Croydon Office,Carillion Services Ltd,Large,1102504,39.60,Pest Control,Administration
Land Registry,Land Registry,17/03/2015,Pest Control,Durham Office,Carillion Services Ltd,Large,1102504,48.24,Pest Control,Administration
Land Registry,Land Registry,17/03/2015,Pest Control,Gloucester Office,Carillion Services Ltd,Large,1102504,46.00,Pest Control,Administration
Land Registry,Land Registry,17/03/2015,Pest Control,Hull Office,Carillion Services Ltd,Large,1102504,49.28,Pest Control,Administration
Land Registry,Land Registry,17/03/2015,Pest Control,Fylde Office,Carillion Services Ltd,Large,1102504,38.99,Pest Control,Administration
Land Registry,Land Registry,17/03/2015,Pest Control,Leicester Office,Carillion Services Ltd,Large,1102504,38.99,Pest Control,Administration
Land Registry,Land Registry,17/03/2015,Pest Control,Nottingham Office,Carillion Services Ltd,Large,1102504,133.15,Pest Control,Administration
Land Registry,Land Registry,17/03/2015,Pest Control,Peterborough Office,Carillion Services Ltd,Large,1102504,40.58,Pest Control,Administration
Land Registry,Land Registry,17/03/2015,Pest Control,Telford Office,Carillion Services Ltd,Large,1102504,44.27,Pest Control,Administration
Land Registry,Land Registry,17/03/2015,Pest Control,Wales Office,Carillion Services Ltd,Large,1102504,58.45,Pest Control,Administration
Land Registry,Land Registry,17/03/2015,Pest Control,Weymouth Office,Carillion Services Ltd,Large,1102504,41.24,Pest Control,Administration
Land Registry,Land Registry,17/03/2015,Pest Control,Governance & Policy,Carillion Services Ltd,Large,1102504,141.88,Pest Control,Administration
Land Registry,Land Registry,17/03/2015,Pest Control,Gloucester Computer Centre,Carillion Services Ltd,Large,1102504,28.19,Pest Control,Administration
Land Registry,Land Registry,17/03/2015,Pest Control,RFS4 - Coventry,Carillion Services Ltd,Large,1102504,52.57,Pest Control,Administration
Land Registry,Land Registry,17/03/2015,Property Maintenance,Birkenhead Office,Carillion Services Ltd,Large,1102504,"5,676.38",Property Maintenance,Administration
Land Registry,Land Registry,17/03/2015,Property Maintenance,Coventry Office,Carillion Services Ltd,Large,1102504,"12,762.97",Property Maintenance,Administration
Land Registry,Land Registry,17/03/2015,Property Maintenance,Croydon Office,Carillion Services Ltd,Large,1102504,"8,547.55",Property Maintenance,Administration
Land Registry,Land Registry,17/03/2015,Property Maintenance,Durham Office,Carillion Services Ltd,Large,1102504,"6,636.26",Property Maintenance,Administration
Land Registry,Land Registry,17/03/2015,Property Maintenance,Gloucester Office,Carillion Services Ltd,Large,1102504,"3,682.62",Property Maintenance,Administration
Land Registry,Land Registry,17/03/2015,Property Maintenance,Hull Office,Carillion Services Ltd,Large,1102504,"6,882.79",Property Maintenance,Administration
Land Registry,Land Registry,17/03/2015,Property Maintenance,Fylde Office,Carillion Services Ltd,Large,1102504,"4,166.91",Property Maintenance,Administration
Land Registry,Land Registry,17/03/2015,Property Maintenance,Leicester Office,Carillion Services Ltd,Large,1102504,"10,007.96",Property Maintenance,Administration
Land Registry,Land Registry,17/03/2015,Property Maintenance,Nottingham Office,Carillion Services Ltd,Large,1102504,"6,493.26",Property Maintenance,Administration
Land Registry,Land Registry,17/03/2015,Property Maintenance,Peterborough Office,Carillion Services Ltd,Large,1102504,"3,586.79",Property Maintenance,Administration
Land Registry,Land Registry,17/03/2015,Property Maintenance,Telford Office,Carillion Services Ltd,Large,1102504,"6,625.22",Property Maintenance,Administration
Land Registry,Land Registry,17/03/2015,Property Maintenance,Wales Office,Carillion Services Ltd,Large,1102504,"5,566.38",Property Maintenance,Administration
Land Registry,Land Registry,17/03/2015,Property Maintenance,Weymouth Office,Carillion Services Ltd,Large,1102504,"2,653.75",Property Maintenance,Administration
Land Registry,Land Registry,17/03/2015,Property Maintenance,Governance & Policy,Carillion Services Ltd,Large,1102504,"19,128.82",Property Maintenance,Administration
Land Registry,Land Registry,17/03/2015,Property Maintenance,Gloucester Computer Centre,Carillion Services Ltd,Large,1102504,"8,638.67",Property Maintenance,Administration
Land Registry,Land Registry,17/03/2015,Property Maintenance,RFS4 - Coventry,Carillion Services Ltd,Large,1102504,-202.10,Property Maintenance,Administration
Land Registry,Land Registry,17/03/2015,Property Maintenance,Birkenhead Office,Carillion Services Ltd,Large,1102516,173.34,Property Maintenance,Administration
Land Registry,Land Registry,17/03/2015,Property Maintenance,Coventry Office,Carillion Services Ltd,Large,1102516,"2,502.21",Property Maintenance,Administration
Land Registry,Land Registry,17/03/2015,Property Maintenance,Croydon Office,Carillion Services Ltd,Large,1102516,"13,059.61",Property Maintenance,Administration
Land Registry,Land Registry,17/03/2015,Property Maintenance,Durham Office,Carillion Services Ltd,Large,1102516,"14,990.07",Property Maintenance,Administration
Land Registry,Land Registry,17/03/2015,Property Maintenance,Gloucester Office,Carillion Services Ltd,Large,1102516,"24,450.79",Property Maintenance,Administration
Land Registry,Land Registry,17/03/2015,Property Maintenance,Hull Office,Carillion Services Ltd,Large,1102516,"16,416.50",Property Maintenance,Administration
Land Registry,Land Registry,17/03/2015,Property Maintenance,Fylde Office,Carillion Services Ltd,Large,1102516,"16,412.54",Property Maintenance,Administration
Land Registry,Land Registry,17/03/2015,Property Maintenance,Leicester Office,Carillion Services Ltd,Large,1102516,"3,810.51",Property Maintenance,Administration
Land Registry,Land Registry,17/03/2015,Property Maintenance,Nottingham Office,Carillion Services Ltd,Large,1102516,"4,609.88",Property Maintenance,Administration
Land Registry,Land Registry,17/03/2015,Property Maintenance,Peterborough Office,Carillion Services Ltd,Large,1102516,546.28,Property Maintenance,Administration
Land Registry,Land Registry,17/03/2015,Property Maintenance,Wales Office,Carillion Services Ltd,Large,1102516,"2,544.11",Property Maintenance,Administration
Land Registry,Land Registry,17/03/2015,Property Maintenance,Weymouth Office,Carillion Services Ltd,Large,1102516,"2,927.34",Property Maintenance,Administration
Land Registry,Land Registry,17/03/2015,Property Maintenance,Governance & Policy,Carillion Services Ltd,Large,1102516,"28,237.87",Property Maintenance,Administration
Land Registry,Land Registry,17/03/2015,Property Maintenance,Gloucester Computer Centre,Carillion Services Ltd,Large,1102516,"3,563.28",Property Maintenance,Administration
Land Registry,Land Registry,17/03/2015,Property Management; Other Fees,Dir: HR,Carillion Services Ltd,Large,1102504,"2,130.37",Property Management; Other Fees,Administration
Land Registry,Land Registry,17/03/2015,Security Expenses,Birkenhead Office,Carillion Services Ltd,Large,1102504,"2,882.40",Security Expenses,Administration
Land Registry,Land Registry,17/03/2015,Security Expenses,Coventry Office,Carillion Services Ltd,Large,1102504,"6,796.88",Security Expenses,Administration
Land Registry,Land Registry,17/03/2015,Security Expenses,Croydon Office,Carillion Services Ltd,Large,1102504,"8,637.93",Security Expenses,Administration
Land Registry,Land Registry,17/03/2015,Security Expenses,Durham Office,Carillion Services Ltd,Large,1102504,"2,525.94",Security Expenses,Administration
Land Registry,Land Registry,17/03/2015,Security Expenses,Gloucester Office,Carillion Services Ltd,Large,1102504,"9,300.77",Security Expenses,Administration
Land Registry,Land Registry,17/03/2015,Security Expenses,Hull Office,Carillion Services Ltd,Large,1102504,"2,860.45",Security Expenses,Administration
Land Registry,Land Registry,17/03/2015,Security Expenses,Fylde Office,Carillion Services Ltd,Large,1102504,"2,287.91",Security Expenses,Administration
Land Registry,Land Registry,17/03/2015,Security Expenses,Leicester Office,Carillion Services Ltd,Large,1102504,"2,578.13",Security Expenses,Administration
Land Registry,Land Registry,17/03/2015,Security Expenses,Nottingham Office,Carillion Services Ltd,Large,1102504,"3,279.03",Security Expenses,Administration
Land Registry,Land Registry,17/03/2015,Security Expenses,Telford Office,Carillion Services Ltd,Large,1102504,"2,813.45",Security Expenses,Administration
Land Registry,Land Registry,17/03/2015,Security Expenses,Wales Office,Carillion Services Ltd,Large,1102504,"2,549.83",Security Expenses,Administration
Land Registry,Land Registry,17/03/2015,Security Expenses,Weymouth Office,Carillion Services Ltd,Large,1102504,"2,816.05",Security Expenses,Administration
Land Registry,Land Registry,17/03/2015,Security Expenses,Governance & Policy,Carillion Services Ltd,Large,1102504,"18,893.71",Security Expenses,Administration
Land Registry,Land Registry,17/03/2015,Security Expenses,Gloucester Computer Centre,Carillion Services Ltd,Large,1102504,"7,306.35",Security Expenses,Administration
Land Registry,Land Registry,17/03/2015,Security Expenses,Birkenhead Office,Carillion Services Ltd,Large,1102516,"1,590.75",Security Expenses,Administration
Land Registry,Land Registry,17/03/2015,Security Expenses,Croydon Office,Carillion Services Ltd,Large,1102516,324.96,Security Expenses,Administration
Land Registry,Land Registry,17/03/2015,Security Expenses,Durham Office,Carillion Services Ltd,Large,1102516,315.78,Security Expenses,Administration
Land Registry,Land Registry,17/03/2015,Security Expenses,Gloucester Office,Carillion Services Ltd,Large,1102516,"3,561.03",Security Expenses,Administration
Land Registry,Land Registry,17/03/2015,Security Expenses,Hull Office,Carillion Services Ltd,Large,1102516,729.96,Security Expenses,Administration
Land Registry,Land Registry,17/03/2015,Security Expenses,Fylde Office,Carillion Services Ltd,Large,1102516,"3,272.18",Security Expenses,Administration
Land Registry,Land Registry,17/03/2015,Security Expenses,Leicester Office,Carillion Services Ltd,Large,1102516,198.86,Security Expenses,Administration
Land Registry,Land Registry,17/03/2015,Security Expenses,Nottingham Office,Carillion Services Ltd,Large,1102516,273.92,Security Expenses,Administration
Land Registry,Land Registry,17/03/2015,Security Expenses,Peterborough Office,Carillion Services Ltd,Large,1102516,818.55,Security Expenses,Administration
Land Registry,Land Registry,17/03/2015,Security Expenses,Governance & Policy,Carillion Services Ltd,Large,1102516,"3,837.77",Security Expenses,Administration
Land Registry,Land Registry,17/03/2015,Security Expenses,Gloucester Computer Centre,Carillion Services Ltd,Large,1102516,432.28,Security Expenses,Administration
Land Registry,Land Registry,17/03/2015,Vending Machine Consumables & Repairs,Birkenhead Office,Carillion Services Ltd,Large,1102504,"1,101.77",Vending Machine Consumables & Repairs,Administration
Land Registry,Land Registry,17/03/2015,Vending Machine Consumables & Repairs,Coventry Office,Carillion Services Ltd,Large,1102504,176.38,Vending Machine Consumables & Repairs,Administration
Land Registry,Land Registry,17/03/2015,Vending Machine Consumables & Repairs,Croydon Office,Carillion Services Ltd,Large,1102504,223.93,Vending Machine Consumables & Repairs,Administration
Land Registry,Land Registry,17/03/2015,Vending Machine Consumables & Repairs,Durham Office,Carillion Services Ltd,Large,1102504,44.09,Vending Machine Consumables & Repairs,Administration
Land Registry,Land Registry,17/03/2015,Vending Machine Consumables & Repairs,Gloucester Office,Carillion Services Ltd,Large,1102504,144.21,Vending Machine Consumables & Repairs,Administration
Land Registry,Land Registry,17/03/2015,Vending Machine Consumables & Repairs,Hull Office,Carillion Services Ltd,Large,1102504,346.87,Vending Machine Consumables & Repairs,Administration
Land Registry,Land Registry,17/03/2015,Vending Machine Consumables & Repairs,Fylde Office,Carillion Services Ltd,Large,1102504,157.35,Vending Machine Consumables & Repairs,Administration
Land Registry,Land Registry,17/03/2015,Vending Machine Consumables & Repairs,Leicester Office,Carillion Services Ltd,Large,1102504,116.03,Vending Machine Consumables & Repairs,Administration
Land Registry,Land Registry,17/03/2015,Vending Machine Consumables & Repairs,Nottingham Office,Carillion Services Ltd,Large,1102504,129.69,Vending Machine Consumables & Repairs,Administration
Land Registry,Land Registry,17/03/2015,Vending Machine Consumables & Repairs,Telford Office,Carillion Services Ltd,Large,1102504,198.08,Vending Machine Consumables & Repairs,Administration
Land Registry,Land Registry,17/03/2015,Vending Machine Consumables & Repairs,Wales Office,Carillion Services Ltd,Large,1102504,194.19,Vending Machine Consumables & Repairs,Administration
Land Registry,Land Registry,17/03/2015,Vending Machine Consumables & Repairs,Weymouth Office,Carillion Services Ltd,Large,1102504,112.40,Vending Machine Consumables & Repairs,Administration
Land Registry,Land Registry,17/03/2015,Vending Machine Consumables & Repairs,Governance & Policy,Carillion Services Ltd,Large,1102504,218.04,Vending Machine Consumables & Repairs,Administration
Land Registry,Land Registry,17/03/2015,Vending Machine Consumables & Repairs,Gloucester Computer Centre,Carillion Services Ltd,Large,1102504,20.06,Vending Machine Consumables & Repairs,Administration
Land Registry,Land Registry,17/03/2015,Waste Disposal,Birkenhead Office,Carillion Services Ltd,Large,1102504,289.64,Waste Disposal,Administration
Land Registry,Land Registry,17/03/2015,Waste Disposal,Coventry Office,Carillion Services Ltd,Large,1102504,242.08,Waste Disposal,Administration
Land Registry,Land Registry,17/03/2015,Waste Disposal,Croydon Office,Carillion Services Ltd,Large,1102504,212.07,Waste Disposal,Administration
Land Registry,Land Registry,17/03/2015,Waste Disposal,Durham Office,Carillion Services Ltd,Large,1102504,337.19,Waste Disposal,Administration
Land Registry,Land Registry,17/03/2015,Waste Disposal,Gloucester Office,Carillion Services Ltd,Large,1102504,251.33,Waste Disposal,Administration
Land Registry,Land Registry,17/03/2015,Waste Disposal,Hull Office,Carillion Services Ltd,Large,1102504,189.59,Waste Disposal,Administration
Land Registry,Land Registry,17/03/2015,Waste Disposal,Fylde Office,Carillion Services Ltd,Large,1102504,259.55,Waste Disposal,Administration
Land Registry,Land Registry,17/03/2015,Waste Disposal,Leicester Office,Carillion Services Ltd,Large,1102504,274.24,Waste Disposal,Administration
Land Registry,Land Registry,17/03/2015,Waste Disposal,Nottingham Office,Carillion Services Ltd,Large,1102504,337.19,Waste Disposal,Administration
Land Registry,Land Registry,17/03/2015,Waste Disposal,Telford Office,Carillion Services Ltd,Large,1102504,242.52,Waste Disposal,Administration
Land Registry,Land Registry,17/03/2015,Waste Disposal,Wales Office,Carillion Services Ltd,Large,1102504,209.06,Waste Disposal,Administration
Land Registry,Land Registry,17/03/2015,Waste Disposal,Weymouth Office,Carillion Services Ltd,Large,1102504,172.37,Waste Disposal,Administration
Land Registry,Land Registry,17/03/2015,Waste Disposal,Governance & Policy,Carillion Services Ltd,Large,1102504,663.35,Waste Disposal,Administration
Land Registry,Land Registry,17/03/2015,Waste Disposal,Gloucester Computer Centre,Carillion Services Ltd,Large,1102504,46.09,Waste Disposal,Administration
Land Registry,Land Registry,17/03/2015,Waste Disposal,Dir: HR,Carillion Services Ltd,Large,1102504,69.69,Waste Disposal,Administration
Land Registry,Land Registry,17/03/2015,Waste Disposal,Birkenhead Office,Carillion Services Ltd,Large,1102516,207.42,Waste Disposal,Administration
Land Registry,Land Registry,17/03/2015,Waste Disposal,Gloucester Office,Carillion Services Ltd,Large,1102516,"1,134.99",Waste Disposal,Administration
Land Registry,Land Registry,17/03/2015,Waste Disposal,Hull Office,Carillion Services Ltd,Large,1102516,25.94,Waste Disposal,Administration
Land Registry,Land Registry,17/03/2015,Waste Disposal,Fylde Office,Carillion Services Ltd,Large,1102516,217.61,Waste Disposal,Administration
Land Registry,Land Registry,17/03/2015,Waste Disposal,Nottingham Office,Carillion Services Ltd,Large,1102516,62.25,Waste Disposal,Administration
Land Registry,Land Registry,17/03/2015,Waste Disposal,Peterborough Office,Carillion Services Ltd,Large,1102516,160.50,Waste Disposal,Administration
Land Registry,Land Registry,17/03/2015,Waste Disposal,Governance & Policy,Carillion Services Ltd,Large,1102516,521.15,Waste Disposal,Administration
Land Registry,Land Registry,17/03/2015,Waste Disposal,Gloucester Computer Centre,Carillion Services Ltd,Large,1102516,217.61,Waste Disposal,Administration
Land Registry,Land Registry,17/03/2015,Water,Birkenhead Office,Carillion Services Ltd,Large,1102722,"4,732.58",Water,Administration
Land Registry,Land Registry,17/03/2015,Water,Coventry Office,Carillion Services Ltd,Large,1102722,"1,940.94",Water,Administration
Land Registry,Land Registry,17/03/2015,Water,Gloucester Office,Carillion Services Ltd,Large,1102722,954.65,Water,Administration
Land Registry,Land Registry,17/03/2015,Water,Hull Office,Carillion Services Ltd,Large,1102722,"2,797.02",Water,Administration
Land Registry,Land Registry,17/03/2015,Water,Leicester Office,Carillion Services Ltd,Large,1102722,"3,935.24",Water,Administration
Land Registry,Land Registry,17/03/2015,Water,Nottingham Office,Carillion Services Ltd,Large,1102722,"2,503.58",Water,Administration
Land Registry,Land Registry,17/03/2015,Water,Gloucester Computer Centre,Carillion Services Ltd,Large,1102722,166.33,Water,Administration
Land Registry,Land Registry,09/03/2015,Computer Equipment Maintenance,IS Service Delivery,CGI IT UK Limited,Large,1101659,"69,500.00",Computer Equipment Maintenance,Administration
Land Registry,Land Registry,02/03/2015,Computer Equipment Hire,IS Service Delivery,CHG-MERIDIAN UK Limited,Large,1100949,"45,820.83",Computer Equipment Hire,Administration
Land Registry,Land Registry,02/03/2015,Computer Equipment Hire,IS Service Delivery,CHG-MERIDIAN UK Limited,Large,1100949,"9,164.17",Computer Equipment Hire,Administration
Land Registry,Land Registry,02/03/2015,Finance Charges on Leases,IS Service Delivery,CHG-MERIDIAN UK Limited,Large,1100068,57.30,Finance Charges on Leases,Administration
Land Registry,Land Registry,02/03/2015,Finance Charges on Leases,IS Service Delivery,CHG-MERIDIAN UK Limited,Large,1100068,11.46,Finance Charges on Leases,Administration
Land Registry,Land Registry,02/03/2015,Finance Lease Obligatns < 1 yr,Balance Sheet,CHG-MERIDIAN UK Limited,Large,1100068,"45,422.33",Finance Lease Obligatns < 1 yr,Administration
Land Registry,Land Registry,02/03/2015,Finance Lease Obligatns < 1 yr,Balance Sheet,CHG-MERIDIAN UK Limited,Large,1100068,"9,084.47",Finance Lease Obligatns < 1 yr,Administration
Land Registry,Land Registry,27/03/2015,Rates Payable,Wales Office,City & County of Swansea,Large,1103652,"17,593.00",Rates Payable,Administration
Land Registry,Land Registry,27/03/2015,Rates Payable,Dir: HR,City of York Council,Large,1102255,"17,748.00",Rates Payable,Administration
Land Registry,Land Registry,20/03/2015,Rent Payable,Peterborough Office,Commercial Estates Group Ltd,SME,1100786,"59,221.80",Rent Payable,Administration
Land Registry,Land Registry,20/03/2015,Rent Payable,Peterborough Office,Commercial Estates Group Ltd,SME,1100786,,Rent Payable,Administration
Land Registry,Land Registry,20/03/2015,Computer Equipment Maintenance,IS Service Delivery,Compuware Ltd,Large,1102163,"170,000.00",Computer Equipment Maintenance,Administration
Land Registry,Land Registry,27/03/2015,Rates Payable,Coventry Office,Coventry City Council,Large,1103644,"40,175.00",Rates Payable,Administration
Land Registry,Land Registry,31/03/2015,Rates Payable,Croydon Office,Croydon Council,Large,1102254,"29,241.00",Rates Payable,Administration
Land Registry,Land Registry,31/03/2015,Computer Equipment Maintenance,IS Service Delivery,CSA Waverley Ltd,Large,1101986,"61,468.61",Computer Equipment Maintenance,Administration
Land Registry,Land Registry,09/03/2015,Next Generation HR Professional Services,HR,Department for Business Innovation & Skills,Large,1101425,"226,023.00",Next Generation HR Professional Services,Administration
Land Registry,Land Registry,20/03/2015,Rent Payable,Nottingham Office,Dtz Debenham Tie Leung Ltd,Large,1102512,"183,577.50",Rent Payable,Administration
Land Registry,Land Registry,20/03/2015,Rent Payable,Nottingham Office,Dtz Debenham Tie Leung Ltd,Large,1102512,,Rent Payable,Administration
Land Registry,Land Registry,27/03/2015,Rates Payable,Durham Office,Durham County Council,Large,1103047,"28,594.00",Rates Payable,Administration
Land Registry,Land Registry,03/03/2015,Transport Fuel,Central Facilities Management Team,Enterprise Rent-A-Car (UK) Ltd,Large,1100500,"3,253.51",Transport Fuel,Administration
Land Registry,Land Registry,03/03/2015,Transport Fuel,Central Facilities Management Team,Enterprise Rent-A-Car (UK) Ltd,Large,1100500,650.70,Transport Fuel,Administration
Land Registry,Land Registry,03/03/2015,Transport Hire of Cars and Vans,Central Facilities Management Team,Enterprise Rent-A-Car (UK) Ltd,Large,1100500,"26,702.45",Transport Hire of Cars and Vans,Administration
Land Registry,Land Registry,11/03/2015,Dilapidations Settlement for Touthill Close Peterborough,Balance Sheet,Flint Bishop LLP,Large,1102891,"80,000.00",Dilapidations Settlement,Administration
Land Registry,Land Registry,27/03/2015,Rates Payable,Fylde Office,Fylde Borough Council,Large,1101943,"18,366.50",Rates Payable,Administration
Land Registry,Land Registry,23/03/2015,Rent Payable,Governance & Policy,GBR Phoenix Beard Property Consultants,Large,1103447,"29,550.00",Rent Payable,Administration
Land Registry,Land Registry,23/03/2015,Rent Payable,Governance & Policy,GBR Phoenix Beard Property Consultants,Large,1103447,,Rent Payable,Administration
Land Registry,Land Registry,23/03/2015,Rent Payable,RFS11 - Plymouth,GBR Phoenix Beard Property Consultants,Large,1103446,"38,400.00",Rent Payable,Administration
Land Registry,Land Registry,23/03/2015,Rent Payable,RFS11 - Plymouth,GBR Phoenix Beard Property Consultants,Large,1103446,,Rent Payable,Administration
Land Registry,Land Registry,27/03/2015,Rates Payable,Gloucester Office,Gloucester City Council,Large,1103041,"24,524.50",Rates Payable,Administration
Land Registry,Land Registry,13/03/2015,Ind Legal Costs,Guarantee & Litigation,Government Legal Department,Large,1102282,"26,894.17",Ind Legal Costs,Administration
Land Registry,Land Registry,20/03/2015,Rent Payable,Gloucester Office,Greenridge Echo General Partner Ltd,SME,1052571,"211,500.00",Rent Payable,Administration
Land Registry,Land Registry,20/03/2015,Rent Payable,Gloucester Office,Greenridge Echo General Partner Ltd,SME,1052571,,Rent Payable,Administration
Land Registry,Land Registry,31/03/2015,Independent Adjudicators's Office Costs,Independent Adjudicator,HM Courts & Tribunals Service,Large,1104240,"694,000.00",Independent Adjudicators's Office Costs,Administration
Land Registry,Land Registry,24/03/2015,Computer Equipment Maintenance,IS Service Delivery,Interchip AG,SME,1103200,"80,007.29",Computer Equipment Maintenance,Administration
Land Registry,Land Registry,20/03/2015,Rent Payable,Dir: HR,Jones Lang LaSalle Ltd,Large,1101420,"135,000.00",Rent Payable,Administration
Land Registry,Land Registry,20/03/2015,Rent Payable,Dir: HR,Jones Lang LaSalle Ltd,Large,1101420,,Rent Payable,Administration
Land Registry,Land Registry,26/03/2015,Employment Agency Staff Costs,Prog: Digital by Default,Kainos Software Ltd,Large,1103795,"37,296.67",Employment Agency Staff Costs,Administration
Land Registry,Land Registry,26/03/2015,Employment Agency Staff Costs,Prog: Digital by Default,Kainos Software Ltd,Large,1103795,"7,459.33",Employment Agency Staff Costs,Administration
Land Registry,Land Registry,27/03/2015,Employment Agency Staff Costs,Prog: Digital by Default,Kainos Software Ltd,Large,1104078,"21,390.00",Employment Agency Staff Costs,Administration
Land Registry,Land Registry,27/03/2015,Employment Agency Staff Costs,Prog: Digital by Default,Kainos Software Ltd,Large,1104078,"4,278.00",Employment Agency Staff Costs,Administration
Land Registry,Land Registry,12/03/2015,Professional Services,Finance Director,Lane Clark & Peacock LLP,Large,1100964,"30,000.00",Professional Services,Administration
Land Registry,Land Registry,12/03/2015,Professional Services,Finance Director,Lane Clark & Peacock LLP,Large,1100953,"-30,000.00",Professional Services,Administration
Land Registry,Land Registry,12/03/2015,Professional Services,Finance Director,Lane Clark & Peacock LLP,Large,1100963,"47,206.00",Professional Services,Administration
Land Registry,Land Registry,27/03/2015,Rates Payable,Leicester Office,Leicester City Council,Large,1101944,"18,483.00",Rates Payable,Administration
Land Registry,Land Registry,13/03/2015,Legal  Expenses,Director of Legal Services,Ministry of Justice,Large,1102281,"150,000.00",Legal  Expenses,Administration
Land Registry,Land Registry,11/03/2015,Professional Services,Prog: IT Foundations,Moore Stephens LLP,Large,1100225,"22,270.00",Professional Services,Administration
Land Registry,Land Registry,27/03/2015,Rates Payable,Nottingham Office,Nottingham City Council,Large,1103651,"24,650.00",Rates Payable,Administration
Land Registry,Land Registry,17/03/2015,E-Services Usage,Dir: (Add Value) Commercial & Customer,Ordnance Survey,Large,1102513,"50,000.00",E-Services Usage,Administration
Land Registry,Land Registry,17/03/2015,E-Services Usage,Dir: (Add Value) Commercial & Customer,Ordnance Survey,Large,1100784,"-50,000.00",E-Services Usage,Administration
Land Registry,Land Registry,10/03/2015,Ordnance Survey Surveys,Survey & Mapping Services,Ordnance Survey,Large,1097706,"669,456.50",Ordnance Survey Surveys,Administration
Land Registry,Land Registry,27/03/2015,Rates Payable,Peterborough Office,Peterborough City Council,Large,1102471,"11,088.00",Rates Payable,Administration
Land Registry,Land Registry,27/03/2015,Rates Payable,Governance & Policy,Plymouth City Council,Large,1101940,"36,975.00",Rates Payable,Administration
Land Registry,Land Registry,05/03/2015,Travel & Subsistence General Duty,Birkenhead Office,Redfern Travel Ltd,SME,1101036,167.30,Travel & Subsistence General Duty,Administration
Land Registry,Land Registry,05/03/2015,Travel & Subsistence General Duty,Coventry Office,Redfern Travel Ltd,SME,1101036,160.36,Travel & Subsistence General Duty,Administration
Land Registry,Land Registry,05/03/2015,Travel & Subsistence General Duty,Croydon Office,Redfern Travel Ltd,SME,1101036,138.77,Travel & Subsistence General Duty,Administration
Land Registry,Land Registry,05/03/2015,Travel & Subsistence General Duty,Gloucester Office,Redfern Travel Ltd,SME,1101036,56.73,Travel & Subsistence General Duty,Administration
Land Registry,Land Registry,05/03/2015,Travel & Subsistence General Duty,Hull Office,Redfern Travel Ltd,SME,1101036,106.43,Travel & Subsistence General Duty,Administration
Land Registry,Land Registry,05/03/2015,Travel & Subsistence General Duty,Fylde Office,Redfern Travel Ltd,SME,1101036,4.40,Travel & Subsistence General Duty,Administration
Land Registry,Land Registry,05/03/2015,Travel & Subsistence General Duty,Nottingham Office,Redfern Travel Ltd,SME,1101036,303.44,Travel & Subsistence General Duty,Administration
Land Registry,Land Registry,05/03/2015,Travel & Subsistence General Duty,Peterborough Office,Redfern Travel Ltd,SME,1101036,36.32,Travel & Subsistence General Duty,Administration
Land Registry,Land Registry,05/03/2015,Travel & Subsistence General Duty,Plymouth Office,Redfern Travel Ltd,SME,1101036,238.26,Travel & Subsistence General Duty,Administration
Land Registry,Land Registry,05/03/2015,Travel & Subsistence General Duty,Telford Office,Redfern Travel Ltd,SME,1101036,45.74,Travel & Subsistence General Duty,Administration
Land Registry,Land Registry,05/03/2015,Travel & Subsistence General Duty,Wales Office,Redfern Travel Ltd,SME,1101036,211.64,Travel & Subsistence General Duty,Administration
Land Registry,Land Registry,05/03/2015,Travel & Subsistence General Duty,Weymouth Office,Redfern Travel Ltd,SME,1101036,238.17,Travel & Subsistence General Duty,Administration
Land Registry,Land Registry,05/03/2015,Travel & Subsistence General Duty,Chief Executives Office,Redfern Travel Ltd,SME,1101036,"1,267.89",Travel & Subsistence General Duty,Administration
Land Registry,Land Registry,05/03/2015,Travel & Subsistence General Duty,LR Board & Board Chair,Redfern Travel Ltd,SME,1101036,1.40,Travel & Subsistence General Duty,Administration
Land Registry,Land Registry,05/03/2015,Travel & Subsistence General Duty,Strategy Team,Redfern Travel Ltd,SME,1101036,369.01,Travel & Subsistence General Duty,Administration
Land Registry,Land Registry,05/03/2015,Travel & Subsistence General Duty,HR,Redfern Travel Ltd,SME,1101036,"4,706.74",Travel & Subsistence General Duty,Administration
Land Registry,Land Registry,05/03/2015,Travel & Subsistence General Duty,Learning and Development,Redfern Travel Ltd,SME,1101036,806.41,Travel & Subsistence General Duty,Administration
Land Registry,Land Registry,05/03/2015,Travel & Subsistence General Duty,Employee & Management Support Manager,Redfern Travel Ltd,SME,1101036,147.85,Travel & Subsistence General Duty,Administration
Land Registry,Land Registry,05/03/2015,Travel & Subsistence General Duty,Finance Director,Redfern Travel Ltd,SME,1101036,252.06,Travel & Subsistence General Duty,Administration
Land Registry,Land Registry,05/03/2015,Travel & Subsistence General Duty,Corp Procurement,Redfern Travel Ltd,SME,1101036,311.89,Travel & Subsistence General Duty,Administration
Land Registry,Land Registry,05/03/2015,Travel & Subsistence General Duty,Internal Audit,Redfern Travel Ltd,SME,1101036,725.46,Travel & Subsistence General Duty,Administration
Land Registry,Land Registry,05/03/2015,Travel & Subsistence General Duty,Business Planning Assurance and Risk Management,Redfern Travel Ltd,SME,1101036,86.74,Travel & Subsistence General Duty,Administration
Land Registry,Land Registry,05/03/2015,Travel & Subsistence General Duty,Director of Operations,Redfern Travel Ltd,SME,1101036,220.06,Travel & Subsistence General Duty,Administration
Land Registry,Land Registry,05/03/2015,Travel & Subsistence General Duty,Central Operations Group,Redfern Travel Ltd,SME,1101036,"3,250.44",Travel & Subsistence General Duty,Administration
Land Registry,Land Registry,05/03/2015,Travel & Subsistence General Duty,Director of Legal Services,Redfern Travel Ltd,SME,1101036,317.99,Travel & Subsistence General Duty,Administration
Land Registry,Land Registry,05/03/2015,Travel & Subsistence General Duty,Registration Legal Services Group,Redfern Travel Ltd,SME,1101036,-38.88,Travel & Subsistence General Duty,Administration
Land Registry,Land Registry,05/03/2015,Travel & Subsistence General Duty,Survey & Mapping Services,Redfern Travel Ltd,SME,1101036,537.34,Travel & Subsistence General Duty,Administration
Land Registry,Land Registry,05/03/2015,Travel & Subsistence General Duty,Corporate Legal Services,Redfern Travel Ltd,SME,1101036,"1,234.01",Travel & Subsistence General Duty,Administration
Land Registry,Land Registry,05/03/2015,Travel & Subsistence General Duty,Research & Data Mining,Redfern Travel Ltd,SME,1101036,549.23,Travel & Subsistence General Duty,Administration
Land Registry,Land Registry,05/03/2015,Travel & Subsistence General Duty,Local Lawyer Group,Redfern Travel Ltd,SME,1101036,770.72,Travel & Subsistence General Duty,Administration
Land Registry,Land Registry,05/03/2015,Travel & Subsistence General Duty,Director of Information Systems,Redfern Travel Ltd,SME,1101036,993.08,Travel & Subsistence General Duty,Administration
Land Registry,Land Registry,05/03/2015,Travel & Subsistence General Duty,Internal Solutions Group,Redfern Travel Ltd,SME,1101036,"2,417.16",Travel & Subsistence General Duty,Administration
Land Registry,Land Registry,05/03/2015,Travel & Subsistence General Duty,Technology Group,Redfern Travel Ltd,SME,1101036,334.57,Travel & Subsistence General Duty,Administration
Land Registry,Land Registry,05/03/2015,Travel & Subsistence General Duty,IS Service Delivery,Redfern Travel Ltd,SME,1101036,"5,537.94",Travel & Subsistence General Duty,Administration
Land Registry,Land Registry,05/03/2015,Travel & Subsistence General Duty,Central Facilities Management Team,Redfern Travel Ltd,SME,1101036,542.10,Travel & Subsistence General Duty,Administration
Land Registry,Land Registry,05/03/2015,Travel & Subsistence General Duty,Property Asset Management Group,Redfern Travel Ltd,SME,1101036,594.98,Travel & Subsistence General Duty,Administration
Land Registry,Land Registry,05/03/2015,Travel & Subsistence General Duty,Business Continuity,Redfern Travel Ltd,SME,1101036,465.94,Travel & Subsistence General Duty,Administration
Land Registry,Land Registry,05/03/2015,Travel & Subsistence General Duty,Dir: (Statutory) Commercial & Customer,Redfern Travel Ltd,SME,1101036,"4,395.89",Travel & Subsistence General Duty,Administration
Land Registry,Land Registry,05/03/2015,Travel & Subsistence General Duty,LR Connect Portfolio,Redfern Travel Ltd,SME,1101036,"1,900.30",Travel & Subsistence General Duty,Administration
Land Registry,Land Registry,05/03/2015,Travel & Subsistence General Duty,Prog: IT Foundations,Redfern Travel Ltd,SME,1101036,67.84,Travel & Subsistence General Duty,Administration
Land Registry,Land Registry,05/03/2015,Travel & Subsistence General Duty,Prog: People&Organisation,Redfern Travel Ltd,SME,1101036,94.53,Travel & Subsistence General Duty,Administration
Land Registry,Land Registry,05/03/2015,Travel & Subsistence General Duty,Prog: e-Enablement,Redfern Travel Ltd,SME,1101036,"1,821.67",Travel & Subsistence General Duty,Administration
Land Registry,Land Registry,05/03/2015,Travel & Subsistence General Duty,Prog: Digital by Default,Redfern Travel Ltd,SME,1101036,"9,361.77",Travel & Subsistence General Duty,Administration
Land Registry,Land Registry,05/03/2015,Travel & Subsistence General Duty,Commercial Director,Redfern Travel Ltd,SME,1101036,313.01,Travel & Subsistence General Duty,Administration
Land Registry,Land Registry,05/03/2015,Travel & Subsistence General Duty,Business Development,Redfern Travel Ltd,SME,1101036,"1,333.98",Travel & Subsistence General Duty,Administration
Land Registry,Land Registry,05/03/2015,Travel & Subsistence General Duty,Commercial & Customer Strategy & Performance,Redfern Travel Ltd,SME,1101036,382.06,Travel & Subsistence General Duty,Administration
Land Registry,Land Registry,05/03/2015,Travel & Subsistence General Duty,Product Development & Management,Redfern Travel Ltd,SME,1101036,366.57,Travel & Subsistence General Duty,Administration
Land Registry,Land Registry,05/03/2015,Travel & Subsistence General Duty,Marketing Services Team,Redfern Travel Ltd,SME,1101036,854.34,Travel & Subsistence General Duty,Administration
Land Registry,Land Registry,05/03/2015,Travel & Subsistence General Duty,International Unit,Redfern Travel Ltd,SME,1101036,239.84,Travel & Subsistence General Duty,Administration
Land Registry,Land Registry,05/03/2015,Travel & Subsistence General Duty,Customer Services,Redfern Travel Ltd,SME,1101036,1.17,Travel & Subsistence General Duty,Administration
Land Registry,Land Registry,17/03/2015,Travel & Subsistence General Duty,Birkenhead Office,Redfern Travel Ltd,SME,1102897,310.24,Travel & Subsistence General Duty,Administration
Land Registry,Land Registry,17/03/2015,Travel & Subsistence General Duty,Durham Office,Redfern Travel Ltd,SME,1102897,342.08,Travel & Subsistence General Duty,Administration
Land Registry,Land Registry,17/03/2015,Travel & Subsistence General Duty,Hull Office,Redfern Travel Ltd,SME,1102897,87.26,Travel & Subsistence General Duty,Administration
Land Registry,Land Registry,17/03/2015,Travel & Subsistence General Duty,Leicester Office,Redfern Travel Ltd,SME,1102897,160.93,Travel & Subsistence General Duty,Administration
Land Registry,Land Registry,17/03/2015,Travel & Subsistence General Duty,Nottingham Office,Redfern Travel Ltd,SME,1102897,91.94,Travel & Subsistence General Duty,Administration
Land Registry,Land Registry,17/03/2015,Travel & Subsistence General Duty,Peterborough Office,Redfern Travel Ltd,SME,1102897,196.65,Travel & Subsistence General Duty,Administration
Land Registry,Land Registry,17/03/2015,Travel & Subsistence General Duty,Wales Office,Redfern Travel Ltd,SME,1102897,533.57,Travel & Subsistence General Duty,Administration
Land Registry,Land Registry,17/03/2015,Travel & Subsistence General Duty,Chief Executives Office,Redfern Travel Ltd,SME,1102897,"1,550.61",Travel & Subsistence General Duty,Administration
Land Registry,Land Registry,17/03/2015,Travel & Subsistence General Duty,Strategy Team,Redfern Travel Ltd,SME,1102897,618.40,Travel & Subsistence General Duty,Administration
Land Registry,Land Registry,17/03/2015,Travel & Subsistence General Duty,HR,Redfern Travel Ltd,SME,1102897,"4,835.90",Travel & Subsistence General Duty,Administration
Land Registry,Land Registry,17/03/2015,Travel & Subsistence General Duty,Learning and Development,Redfern Travel Ltd,SME,1102897,436.08,Travel & Subsistence General Duty,Administration
Land Registry,Land Registry,17/03/2015,Travel & Subsistence General Duty,Finance Director,Redfern Travel Ltd,SME,1102897,84.78,Travel & Subsistence General Duty,Administration
Land Registry,Land Registry,17/03/2015,Travel & Subsistence General Duty,Finance Group,Redfern Travel Ltd,SME,1102897,212.36,Travel & Subsistence General Duty,Administration
Land Registry,Land Registry,17/03/2015,Travel & Subsistence General Duty,Corp Procurement,Redfern Travel Ltd,SME,1102897,147.16,Travel & Subsistence General Duty,Administration
Land Registry,Land Registry,17/03/2015,Travel & Subsistence General Duty,Internal Audit,Redfern Travel Ltd,SME,1102897,260.49,Travel & Subsistence General Duty,Administration
Land Registry,Land Registry,17/03/2015,Travel & Subsistence General Duty,Director of Operations,Redfern Travel Ltd,SME,1102897,71.82,Travel & Subsistence General Duty,Administration
Land Registry,Land Registry,17/03/2015,Travel & Subsistence General Duty,Central Operations Group,Redfern Travel Ltd,SME,1102897,"1,594.09",Travel & Subsistence General Duty,Administration
Land Registry,Land Registry,17/03/2015,Travel & Subsistence General Duty,Director of Legal Services,Redfern Travel Ltd,SME,1102897,280.50,Travel & Subsistence General Duty,Administration
Land Registry,Land Registry,17/03/2015,Travel & Subsistence General Duty,Technical Assurance Group,Redfern Travel Ltd,SME,1102897,67.80,Travel & Subsistence General Duty,Administration
Land Registry,Land Registry,17/03/2015,Travel & Subsistence General Duty,Survey & Mapping Services,Redfern Travel Ltd,SME,1102897,165.25,Travel & Subsistence General Duty,Administration
Land Registry,Land Registry,17/03/2015,Travel & Subsistence General Duty,Corporate Legal Services,Redfern Travel Ltd,SME,1102897,575.57,Travel & Subsistence General Duty,Administration
Land Registry,Land Registry,17/03/2015,Travel & Subsistence General Duty,Guarantee & Litigation,Redfern Travel Ltd,SME,1102897,116.48,Travel & Subsistence General Duty,Administration
Land Registry,Land Registry,17/03/2015,Travel & Subsistence General Duty,Research & Data Mining,Redfern Travel Ltd,SME,1102897,894.72,Travel & Subsistence General Duty,Administration
Land Registry,Land Registry,17/03/2015,Travel & Subsistence General Duty,Local Lawyer Group,Redfern Travel Ltd,SME,1102897,578.78,Travel & Subsistence General Duty,Administration
Land Registry,Land Registry,17/03/2015,Travel & Subsistence General Duty,Director of Information Systems,Redfern Travel Ltd,SME,1102897,359.80,Travel & Subsistence General Duty,Administration
Land Registry,Land Registry,17/03/2015,Travel & Subsistence General Duty,Internal Solutions Group,Redfern Travel Ltd,SME,1102897,"2,382.29",Travel & Subsistence General Duty,Administration
Land Registry,Land Registry,17/03/2015,Travel & Subsistence General Duty,Technology Group,Redfern Travel Ltd,SME,1102897,"1,366.35",Travel & Subsistence General Duty,Administration
Land Registry,Land Registry,17/03/2015,Travel & Subsistence General Duty,IS Service Delivery,Redfern Travel Ltd,SME,1102897,"3,079.90",Travel & Subsistence General Duty,Administration
Land Registry,Land Registry,17/03/2015,Travel & Subsistence General Duty,Central Facilities Management Team,Redfern Travel Ltd,SME,1102897,"1,136.46",Travel & Subsistence General Duty,Administration
Land Registry,Land Registry,17/03/2015,Travel & Subsistence General Duty,Property Asset Management Group,Redfern Travel Ltd,SME,1102897,497.80,Travel & Subsistence General Duty,Administration
Land Registry,Land Registry,17/03/2015,Travel & Subsistence General Duty,Business Continuity,Redfern Travel Ltd,SME,1102897,284.42,Travel & Subsistence General Duty,Administration
Land Registry,Land Registry,17/03/2015,Travel & Subsistence General Duty,Dir: Information Systems,Redfern Travel Ltd,SME,1102897,197.44,Travel & Subsistence General Duty,Administration
Land Registry,Land Registry,17/03/2015,Travel & Subsistence General Duty,Dir: (Statutory) Commercial & Customer,Redfern Travel Ltd,SME,1102897,"6,940.86",Travel & Subsistence General Duty,Administration
Land Registry,Land Registry,17/03/2015,Travel & Subsistence General Duty,Dir: (Statutory) Commercial & Customer,Redfern Travel Ltd,SME,1102897,1.86,Travel & Subsistence General Duty,Administration
Land Registry,Land Registry,17/03/2015,Travel & Subsistence General Duty,LR Connect Portfolio,Redfern Travel Ltd,SME,1102897,"1,221.71",Travel & Subsistence General Duty,Administration
Land Registry,Land Registry,17/03/2015,Travel & Subsistence General Duty,Prog: IT Foundations,Redfern Travel Ltd,SME,1102897,131.57,Travel & Subsistence General Duty,Administration
Land Registry,Land Registry,17/03/2015,Travel & Subsistence General Duty,Prog: People&Organisation,Redfern Travel Ltd,SME,1102897,499.55,Travel & Subsistence General Duty,Administration
Land Registry,Land Registry,17/03/2015,Travel & Subsistence General Duty,Prog: e-Enablement,Redfern Travel Ltd,SME,1102897,"3,378.10",Travel & Subsistence General Duty,Administration
Land Registry,Land Registry,17/03/2015,Travel & Subsistence General Duty,Prog: Digital by Default,Redfern Travel Ltd,SME,1102897,"8,418.91",Travel & Subsistence General Duty,Administration
Land Registry,Land Registry,17/03/2015,Travel & Subsistence General Duty,Commercial Director,Redfern Travel Ltd,SME,1102897,71.82,Travel & Subsistence General Duty,Administration
Land Registry,Land Registry,17/03/2015,Travel & Subsistence General Duty,Business Development,Redfern Travel Ltd,SME,1102897,"1,269.37",Travel & Subsistence General Duty,Administration
Land Registry,Land Registry,17/03/2015,Travel & Subsistence General Duty,Stakeholder Management,Redfern Travel Ltd,SME,1102897,47.25,Travel & Subsistence General Duty,Administration
Land Registry,Land Registry,17/03/2015,Travel & Subsistence General Duty,Commercial & Customer Strategy & Performance,Redfern Travel Ltd,SME,1102897,726.73,Travel & Subsistence General Duty,Administration
Land Registry,Land Registry,17/03/2015,Travel & Subsistence General Duty,Product Development & Management,Redfern Travel Ltd,SME,1102897,"1,075.65",Travel & Subsistence General Duty,Administration
Land Registry,Land Registry,17/03/2015,Travel & Subsistence General Duty,Marketing Services Team,Redfern Travel Ltd,SME,1102897,636.73,Travel & Subsistence General Duty,Administration
Land Registry,Land Registry,17/03/2015,Travel & Subsistence General Duty,International Unit,Redfern Travel Ltd,SME,1102897,"1,683.13",Travel & Subsistence General Duty,Administration
Land Registry,Land Registry,17/03/2015,Travel & Subsistence General Duty,Customer Services,Redfern Travel Ltd,SME,1102897,438.93,Travel & Subsistence General Duty,Administration
Land Registry,Land Registry,19/03/2015,Travel & Subsistence General Duty,Durham Office,Redfern Travel Ltd,SME,1103068,76.85,Travel & Subsistence General Duty,Administration
Land Registry,Land Registry,19/03/2015,Travel & Subsistence General Duty,Hull Office,Redfern Travel Ltd,SME,1103068,112.63,Travel & Subsistence General Duty,Administration
Land Registry,Land Registry,19/03/2015,Travel & Subsistence General Duty,Nottingham Office,Redfern Travel Ltd,SME,1103068,83.28,Travel & Subsistence General Duty,Administration
Land Registry,Land Registry,19/03/2015,Travel & Subsistence General Duty,Peterborough Office,Redfern Travel Ltd,SME,1103068,612.33,Travel & Subsistence General Duty,Administration
Land Registry,Land Registry,19/03/2015,Travel & Subsistence General Duty,Telford Office,Redfern Travel Ltd,SME,1103068,43.04,Travel & Subsistence General Duty,Administration
Land Registry,Land Registry,19/03/2015,Travel & Subsistence General Duty,Weymouth Office,Redfern Travel Ltd,SME,1103068,66.62,Travel & Subsistence General Duty,Administration
Land Registry,Land Registry,19/03/2015,Travel & Subsistence General Duty,Chief Executives Office,Redfern Travel Ltd,SME,1103068,626.26,Travel & Subsistence General Duty,Administration
Land Registry,Land Registry,19/03/2015,Travel & Subsistence General Duty,LR Board & Board Chair,Redfern Travel Ltd,SME,1103068,-226.08,Travel & Subsistence General Duty,Administration
Land Registry,Land Registry,19/03/2015,Travel & Subsistence General Duty,Strategy Team,Redfern Travel Ltd,SME,1103068,305.41,Travel & Subsistence General Duty,Administration
Land Registry,Land Registry,19/03/2015,Travel & Subsistence General Duty,HR,Redfern Travel Ltd,SME,1103068,"4,965.77",Travel & Subsistence General Duty,Administration
Land Registry,Land Registry,19/03/2015,Travel & Subsistence General Duty,Learning and Development,Redfern Travel Ltd,SME,1103068,689.68,Travel & Subsistence General Duty,Administration
Land Registry,Land Registry,19/03/2015,Travel & Subsistence General Duty,Performance and Innovation,Redfern Travel Ltd,SME,1103068,70.63,Travel & Subsistence General Duty,Administration
Land Registry,Land Registry,19/03/2015,Travel & Subsistence General Duty,Finance Director,Redfern Travel Ltd,SME,1103068,110.39,Travel & Subsistence General Duty,Administration
Land Registry,Land Registry,19/03/2015,Travel & Subsistence General Duty,Corp Procurement,Redfern Travel Ltd,SME,1103068,611.58,Travel & Subsistence General Duty,Administration
Land Registry,Land Registry,19/03/2015,Travel & Subsistence General Duty,Internal Audit,Redfern Travel Ltd,SME,1103068,"1,106.83",Travel & Subsistence General Duty,Administration
Land Registry,Land Registry,19/03/2015,Travel & Subsistence General Duty,Business Planning Assurance and Risk Management,Redfern Travel Ltd,SME,1103068,13.43,Travel & Subsistence General Duty,Administration
Land Registry,Land Registry,19/03/2015,Travel & Subsistence General Duty,Central Operations Group,Redfern Travel Ltd,SME,1103068,844.95,Travel & Subsistence General Duty,Administration
Land Registry,Land Registry,19/03/2015,Travel & Subsistence General Duty,Forward Scanning,Redfern Travel Ltd,SME,1103068,42.70,Travel & Subsistence General Duty,Administration
Land Registry,Land Registry,19/03/2015,Travel & Subsistence General Duty,Director of Legal Services,Redfern Travel Ltd,SME,1103068,264.23,Travel & Subsistence General Duty,Administration
Land Registry,Land Registry,19/03/2015,Travel & Subsistence General Duty,Registration Legal Services Group,Redfern Travel Ltd,SME,1103068,519.95,Travel & Subsistence General Duty,Administration
Land Registry,Land Registry,19/03/2015,Travel & Subsistence General Duty,Technical Assurance Group,Redfern Travel Ltd,SME,1103068,63.37,Travel & Subsistence General Duty,Administration
Land Registry,Land Registry,19/03/2015,Travel & Subsistence General Duty,Survey & Mapping Services,Redfern Travel Ltd,SME,1103068,228.69,Travel & Subsistence General Duty,Administration
Land Registry,Land Registry,19/03/2015,Travel & Subsistence General Duty,Corporate Legal Services,Redfern Travel Ltd,SME,1103068,787.12,Travel & Subsistence General Duty,Administration
Land Registry,Land Registry,19/03/2015,Travel & Subsistence General Duty,Research & Data Mining,Redfern Travel Ltd,SME,1103068,414.86,Travel & Subsistence General Duty,Administration
Land Registry,Land Registry,19/03/2015,Travel & Subsistence General Duty,Local Lawyer Group,Redfern Travel Ltd,SME,1103068,"1,736.81",Travel & Subsistence General Duty,Administration
Land Registry,Land Registry,19/03/2015,Travel & Subsistence General Duty,Director of Information Systems,Redfern Travel Ltd,SME,1103068,123.97,Travel & Subsistence General Duty,Administration
Land Registry,Land Registry,19/03/2015,Travel & Subsistence General Duty,Internal Solutions Group,Redfern Travel Ltd,SME,1103068,"1,499.05",Travel & Subsistence General Duty,Administration
Land Registry,Land Registry,19/03/2015,Travel & Subsistence General Duty,Technology Group,Redfern Travel Ltd,SME,1103068,617.09,Travel & Subsistence General Duty,Administration
Land Registry,Land Registry,19/03/2015,Travel & Subsistence General Duty,IS Service Delivery,Redfern Travel Ltd,SME,1103068,"2,858.98",Travel & Subsistence General Duty,Administration
Land Registry,Land Registry,19/03/2015,Travel & Subsistence General Duty,Central Facilities Management Team,Redfern Travel Ltd,SME,1103068,407.10,Travel & Subsistence General Duty,Administration
Land Registry,Land Registry,19/03/2015,Travel & Subsistence General Duty,Property Asset Management Group,Redfern Travel Ltd,SME,1103068,847.89,Travel & Subsistence General Duty,Administration
Land Registry,Land Registry,19/03/2015,Travel & Subsistence General Duty,Business Continuity,Redfern Travel Ltd,SME,1103068,524.94,Travel & Subsistence General Duty,Administration
Land Registry,Land Registry,19/03/2015,Travel & Subsistence General Duty,Dir: Information Systems,Redfern Travel Ltd,SME,1103068,79.94,Travel & Subsistence General Duty,Administration
Land Registry,Land Registry,19/03/2015,Travel & Subsistence General Duty,Dir: (Statutory) Commercial & Customer,Redfern Travel Ltd,SME,1103068,"3,642.42",Travel & Subsistence General Duty,Administration
Land Registry,Land Registry,19/03/2015,Travel & Subsistence General Duty,LR Connect Portfolio,Redfern Travel Ltd,SME,1103068,"1,035.35",Travel & Subsistence General Duty,Administration
Land Registry,Land Registry,19/03/2015,Travel & Subsistence General Duty,Prog: IT Foundations,Redfern Travel Ltd,SME,1103068,65.79,Travel & Subsistence General Duty,Administration
Land Registry,Land Registry,19/03/2015,Travel & Subsistence General Duty,Prog: People&Organisation,Redfern Travel Ltd,SME,1103068,395.12,Travel & Subsistence General Duty,Administration
Land Registry,Land Registry,19/03/2015,Travel & Subsistence General Duty,Prog: e-Enablement,Redfern Travel Ltd,SME,1103068,"1,653.17",Travel & Subsistence General Duty,Administration
Land Registry,Land Registry,19/03/2015,Travel & Subsistence General Duty,Prog: Digital by Default,Redfern Travel Ltd,SME,1103068,"7,983.50",Travel & Subsistence General Duty,Administration
Land Registry,Land Registry,19/03/2015,Travel & Subsistence General Duty,Commercial Director,Redfern Travel Ltd,SME,1103068,260.51,Travel & Subsistence General Duty,Administration
Land Registry,Land Registry,19/03/2015,Travel & Subsistence General Duty,Business Development,Redfern Travel Ltd,SME,1103068,"2,721.76",Travel & Subsistence General Duty,Administration
Land Registry,Land Registry,19/03/2015,Travel & Subsistence General Duty,Commercial & Customer Strategy & Performance,Redfern Travel Ltd,SME,1103068,332.71,Travel & Subsistence General Duty,Administration
Land Registry,Land Registry,19/03/2015,Travel & Subsistence General Duty,Product Development & Management,Redfern Travel Ltd,SME,1103068,"1,430.91",Travel & Subsistence General Duty,Administration
Land Registry,Land Registry,19/03/2015,Travel & Subsistence General Duty,Marketing Services Team,Redfern Travel Ltd,SME,1103068,68.56,Travel & Subsistence General Duty,Administration
Land Registry,Land Registry,19/03/2015,Travel & Subsistence General Duty,International Unit,Redfern Travel Ltd,SME,1103068,"1,408.73",Travel & Subsistence General Duty,Administration
Land Registry,Land Registry,19/03/2015,Travel & Subsistence General Duty,Customer Services,Redfern Travel Ltd,SME,1103068,240.02,Travel & Subsistence General Duty,Administration
Land Registry,Land Registry,26/03/2015,Travel & Subsistence General Duty,Birkenhead Office,Redfern Travel Ltd,SME,1104042,65.79,Travel & Subsistence General Duty,Administration
Land Registry,Land Registry,26/03/2015,Travel & Subsistence General Duty,Coventry Office,Redfern Travel Ltd,SME,1104042,76.24,Travel & Subsistence General Duty,Administration
Land Registry,Land Registry,26/03/2015,Travel & Subsistence General Duty,Durham Office,Redfern Travel Ltd,SME,1104042,225.37,Travel & Subsistence General Duty,Administration
Land Registry,Land Registry,26/03/2015,Travel & Subsistence General Duty,Hull Office,Redfern Travel Ltd,SME,1104042,251.93,Travel & Subsistence General Duty,Administration
Land Registry,Land Registry,26/03/2015,Travel & Subsistence General Duty,Fylde Office,Redfern Travel Ltd,SME,1104042,358.39,Travel & Subsistence General Duty,Administration
Land Registry,Land Registry,26/03/2015,Travel & Subsistence General Duty,Leicester Office,Redfern Travel Ltd,SME,1104042,38.67,Travel & Subsistence General Duty,Administration
Land Registry,Land Registry,26/03/2015,Travel & Subsistence General Duty,Peterborough Office,Redfern Travel Ltd,SME,1104042,141.51,Travel & Subsistence General Duty,Administration
Land Registry,Land Registry,26/03/2015,Travel & Subsistence General Duty,Telford Office,Redfern Travel Ltd,SME,1104042,107.51,Travel & Subsistence General Duty,Administration
Land Registry,Land Registry,26/03/2015,Travel & Subsistence General Duty,Wales Office,Redfern Travel Ltd,SME,1104042,256.74,Travel & Subsistence General Duty,Administration
Land Registry,Land Registry,26/03/2015,Travel & Subsistence General Duty,Chief Executives Office,Redfern Travel Ltd,SME,1104042,266.06,Travel & Subsistence General Duty,Administration
Land Registry,Land Registry,26/03/2015,Travel & Subsistence General Duty,Strategy Team,Redfern Travel Ltd,SME,1104042,176.07,Travel & Subsistence General Duty,Administration
Land Registry,Land Registry,26/03/2015,Travel & Subsistence General Duty,HR,Redfern Travel Ltd,SME,1104042,"5,518.08",Travel & Subsistence General Duty,Administration
Land Registry,Land Registry,26/03/2015,Travel & Subsistence General Duty,Learning and Development,Redfern Travel Ltd,SME,1104042,"1,357.15",Travel & Subsistence General Duty,Administration
Land Registry,Land Registry,26/03/2015,Travel & Subsistence General Duty,Employee & Management Support Manager,Redfern Travel Ltd,SME,1104042,41.69,Travel & Subsistence General Duty,Administration
Land Registry,Land Registry,26/03/2015,Travel & Subsistence General Duty,LR Sports Council,Redfern Travel Ltd,SME,1104042,81.53,Travel & Subsistence General Duty,Administration
Land Registry,Land Registry,26/03/2015,Travel & Subsistence General Duty,Finance Director,Redfern Travel Ltd,SME,1104042,7.33,Travel & Subsistence General Duty,Administration
Land Registry,Land Registry,26/03/2015,Travel & Subsistence General Duty,Finance Group,Redfern Travel Ltd,SME,1104042,84.95,Travel & Subsistence General Duty,Administration
Land Registry,Land Registry,26/03/2015,Travel & Subsistence General Duty,Corp Procurement,Redfern Travel Ltd,SME,1104042,237.11,Travel & Subsistence General Duty,Administration
Land Registry,Land Registry,26/03/2015,Travel & Subsistence General Duty,Internal Audit,Redfern Travel Ltd,SME,1104042,984.47,Travel & Subsistence General Duty,Administration
Land Registry,Land Registry,26/03/2015,Travel & Subsistence General Duty,Director of Operations,Redfern Travel Ltd,SME,1104042,64.21,Travel & Subsistence General Duty,Administration
Land Registry,Land Registry,26/03/2015,Travel & Subsistence General Duty,Central Operations Group,Redfern Travel Ltd,SME,1104042,"1,954.56",Travel & Subsistence General Duty,Administration
Land Registry,Land Registry,26/03/2015,Travel & Subsistence General Duty,Director of Legal Services,Redfern Travel Ltd,SME,1104042,142.17,Travel & Subsistence General Duty,Administration
Land Registry,Land Registry,26/03/2015,Travel & Subsistence General Duty,Registration Legal Services Group,Redfern Travel Ltd,SME,1104042,71.82,Travel & Subsistence General Duty,Administration
Land Registry,Land Registry,26/03/2015,Travel & Subsistence General Duty,Survey & Mapping Services,Redfern Travel Ltd,SME,1104042,553.42,Travel & Subsistence General Duty,Administration
Land Registry,Land Registry,26/03/2015,Travel & Subsistence General Duty,Corporate Legal Services,Redfern Travel Ltd,SME,1104042,940.36,Travel & Subsistence General Duty,Administration
Land Registry,Land Registry,26/03/2015,Travel & Subsistence General Duty,Guarantee & Litigation,Redfern Travel Ltd,SME,1104042,81.88,Travel & Subsistence General Duty,Administration
Land Registry,Land Registry,26/03/2015,Travel & Subsistence General Duty,Research & Data Mining,Redfern Travel Ltd,SME,1104042,149.15,Travel & Subsistence General Duty,Administration
Land Registry,Land Registry,26/03/2015,Travel & Subsistence General Duty,Local Lawyer Group,Redfern Travel Ltd,SME,1104042,"1,758.27",Travel & Subsistence General Duty,Administration
Land Registry,Land Registry,26/03/2015,Travel & Subsistence General Duty,Director of Information Systems,Redfern Travel Ltd,SME,1104042,334.37,Travel & Subsistence General Duty,Administration
Land Registry,Land Registry,26/03/2015,Travel & Subsistence General Duty,Internal Solutions Group,Redfern Travel Ltd,SME,1104042,"2,314.71",Travel & Subsistence General Duty,Administration
Land Registry,Land Registry,26/03/2015,Travel & Subsistence General Duty,Technology Group,Redfern Travel Ltd,SME,1104042,1.40,Travel & Subsistence General Duty,Administration
Land Registry,Land Registry,26/03/2015,Travel & Subsistence General Duty,IS Service Delivery,Redfern Travel Ltd,SME,1104042,"3,054.20",Travel & Subsistence General Duty,Administration
Land Registry,Land Registry,26/03/2015,Travel & Subsistence General Duty,Central Facilities Management Team,Redfern Travel Ltd,SME,1104042,946.30,Travel & Subsistence General Duty,Administration
Land Registry,Land Registry,26/03/2015,Travel & Subsistence General Duty,Property Asset Management Group,Redfern Travel Ltd,SME,1104042,487.29,Travel & Subsistence General Duty,Administration
Land Registry,Land Registry,26/03/2015,Travel & Subsistence General Duty,Business Continuity,Redfern Travel Ltd,SME,1104042,96.05,Travel & Subsistence General Duty,Administration
Land Registry,Land Registry,26/03/2015,Travel & Subsistence General Duty,Dir: Information Systems,Redfern Travel Ltd,SME,1104042,387.86,Travel & Subsistence General Duty,Administration
Land Registry,Land Registry,26/03/2015,Travel & Subsistence General Duty,Dir: (Statutory) Commercial & Customer,Redfern Travel Ltd,SME,1104042,"2,571.66",Travel & Subsistence General Duty,Administration
Land Registry,Land Registry,26/03/2015,Travel & Subsistence General Duty,Dir: (Statutory) Commercial & Customer,Redfern Travel Ltd,SME,1104042,12.80,Travel & Subsistence General Duty,Administration
Land Registry,Land Registry,26/03/2015,Travel & Subsistence General Duty,LR Connect Portfolio,Redfern Travel Ltd,SME,1104042,"1,175.90",Travel & Subsistence General Duty,Administration
Land Registry,Land Registry,26/03/2015,Travel & Subsistence General Duty,Prog: IT Foundations,Redfern Travel Ltd,SME,1104042,67.19,Travel & Subsistence General Duty,Administration
Land Registry,Land Registry,26/03/2015,Travel & Subsistence General Duty,Prog: People&Organisation,Redfern Travel Ltd,SME,1104042,291.30,Travel & Subsistence General Duty,Administration
Land Registry,Land Registry,26/03/2015,Travel & Subsistence General Duty,Prog: e-Enablement,Redfern Travel Ltd,SME,1104042,"1,366.22",Travel & Subsistence General Duty,Administration
Land Registry,Land Registry,26/03/2015,Travel & Subsistence General Duty,Prog: Digital by Default,Redfern Travel Ltd,SME,1104042,"9,879.80",Travel & Subsistence General Duty,Administration
Land Registry,Land Registry,26/03/2015,Travel & Subsistence General Duty,Commercial Director,Redfern Travel Ltd,SME,1104042,278.43,Travel & Subsistence General Duty,Administration
Land Registry,Land Registry,26/03/2015,Travel & Subsistence General Duty,Business Development,Redfern Travel Ltd,SME,1104042,"1,053.34",Travel & Subsistence General Duty,Administration
Land Registry,Land Registry,26/03/2015,Travel & Subsistence General Duty,Commercial & Customer Strategy & Performance,Redfern Travel Ltd,SME,1104042,182.92,Travel & Subsistence General Duty,Administration
Land Registry,Land Registry,26/03/2015,Travel & Subsistence General Duty,Product Development & Management,Redfern Travel Ltd,SME,1104042,-47.92,Travel & Subsistence General Duty,Administration
Land Registry,Land Registry,26/03/2015,Travel & Subsistence General Duty,Marketing Services Team,Redfern Travel Ltd,SME,1104042,161.88,Travel & Subsistence General Duty,Administration
Land Registry,Land Registry,26/03/2015,Travel & Subsistence General Duty,International Unit,Redfern Travel Ltd,SME,1104042,705.89,Travel & Subsistence General Duty,Administration
Land Registry,Land Registry,26/03/2015,Travel & Subsistence General Duty,Customer Services,Redfern Travel Ltd,SME,1104042,52.12,Travel & Subsistence General Duty,Administration
Land Registry,Land Registry,31/03/2015,Travel & Subsistence General Duty,Coventry Office,Redfern Travel Ltd,SME,1104603,251.85,Travel & Subsistence General Duty,Administration
Land Registry,Land Registry,31/03/2015,Travel & Subsistence General Duty,Croydon Office,Redfern Travel Ltd,SME,1104603,187.55,Travel & Subsistence General Duty,Administration
Land Registry,Land Registry,31/03/2015,Travel & Subsistence General Duty,Durham Office,Redfern Travel Ltd,SME,1104603,582.98,Travel & Subsistence General Duty,Administration
Land Registry,Land Registry,31/03/2015,Travel & Subsistence General Duty,Hull Office,Redfern Travel Ltd,SME,1104603,244.21,Travel & Subsistence General Duty,Administration
Land Registry,Land Registry,31/03/2015,Travel & Subsistence General Duty,Leicester Office,Redfern Travel Ltd,SME,1104603,160.93,Travel & Subsistence General Duty,Administration
Land Registry,Land Registry,31/03/2015,Travel & Subsistence General Duty,Nottingham Office,Redfern Travel Ltd,SME,1104603,75.74,Travel & Subsistence General Duty,Administration
Land Registry,Land Registry,31/03/2015,Travel & Subsistence General Duty,Peterborough Office,Redfern Travel Ltd,SME,1104603,71.13,Travel & Subsistence General Duty,Administration
Land Registry,Land Registry,31/03/2015,Travel & Subsistence General Duty,Wales Office,Redfern Travel Ltd,SME,1104603,343.97,Travel & Subsistence General Duty,Administration
Land Registry,Land Registry,31/03/2015,Travel & Subsistence General Duty,Weymouth Office,Redfern Travel Ltd,SME,1104603,179.63,Travel & Subsistence General Duty,Administration
Land Registry,Land Registry,31/03/2015,Travel & Subsistence General Duty,Chief Executives Office,Redfern Travel Ltd,SME,1104603,482.49,Travel & Subsistence General Duty,Administration
Land Registry,Land Registry,31/03/2015,Travel & Subsistence General Duty,LR Board & Board Chair,Redfern Travel Ltd,SME,1104603,72.13,Travel & Subsistence General Duty,Administration
Land Registry,Land Registry,31/03/2015,Travel & Subsistence General Duty,Strategy Team,Redfern Travel Ltd,SME,1104603,72.13,Travel & Subsistence General Duty,Administration
Land Registry,Land Registry,31/03/2015,Travel & Subsistence General Duty,HR,Redfern Travel Ltd,SME,1104603,"3,468.97",Travel & Subsistence General Duty,Administration
Land Registry,Land Registry,31/03/2015,Travel & Subsistence General Duty,Employee & Management Support Manager,Redfern Travel Ltd,SME,1104603,226.45,Travel & Subsistence General Duty,Administration
Land Registry,Land Registry,31/03/2015,Travel & Subsistence General Duty,Finance Director,Redfern Travel Ltd,SME,1104603,327.05,Travel & Subsistence General Duty,Administration
Land Registry,Land Registry,31/03/2015,Travel & Subsistence General Duty,Corp Procurement,Redfern Travel Ltd,SME,1104603,437.90,Travel & Subsistence General Duty,Administration
Land Registry,Land Registry,31/03/2015,Travel & Subsistence General Duty,Internal Audit,Redfern Travel Ltd,SME,1104603,"1,002.57",Travel & Subsistence General Duty,Administration
Land Registry,Land Registry,31/03/2015,Travel & Subsistence General Duty,Business Planning Assurance and Risk Management,Redfern Travel Ltd,SME,1104603,-136.70,Travel & Subsistence General Duty,Administration
Land Registry,Land Registry,31/03/2015,Travel & Subsistence General Duty,Director of Operations,Redfern Travel Ltd,SME,1104603,140.93,Travel & Subsistence General Duty,Administration
Land Registry,Land Registry,31/03/2015,Travel & Subsistence General Duty,Central Operations Group,Redfern Travel Ltd,SME,1104603,"2,175.52",Travel & Subsistence General Duty,Administration
Land Registry,Land Registry,31/03/2015,Travel & Subsistence General Duty,Director of Legal Services,Redfern Travel Ltd,SME,1104603,878.58,Travel & Subsistence General Duty,Administration
Land Registry,Land Registry,31/03/2015,Travel & Subsistence General Duty,Registration Legal Services Group,Redfern Travel Ltd,SME,1104603,67.50,Travel & Subsistence General Duty,Administration
Land Registry,Land Registry,31/03/2015,Travel & Subsistence General Duty,Technical Assurance Group,Redfern Travel Ltd,SME,1104603,130.17,Travel & Subsistence General Duty,Administration
Land Registry,Land Registry,31/03/2015,Travel & Subsistence General Duty,Survey & Mapping Services,Redfern Travel Ltd,SME,1104603,247.57,Travel & Subsistence General Duty,Administration
Land Registry,Land Registry,31/03/2015,Travel & Subsistence General Duty,Corporate Legal Services,Redfern Travel Ltd,SME,1104603,"1,553.44",Travel & Subsistence General Duty,Administration
Land Registry,Land Registry,31/03/2015,Travel & Subsistence General Duty,Guarantee & Litigation,Redfern Travel Ltd,SME,1104603,343.51,Travel & Subsistence General Duty,Administration
Land Registry,Land Registry,31/03/2015,Travel & Subsistence General Duty,Research & Data Mining,Redfern Travel Ltd,SME,1104603,242.84,Travel & Subsistence General Duty,Administration
Land Registry,Land Registry,31/03/2015,Travel & Subsistence General Duty,Local Lawyer Group,Redfern Travel Ltd,SME,1104603,"1,070.75",Travel & Subsistence General Duty,Administration
Land Registry,Land Registry,31/03/2015,Travel & Subsistence General Duty,Projects and Programme Centre,Redfern Travel Ltd,SME,1104603,248.68,Travel & Subsistence General Duty,Administration
Land Registry,Land Registry,31/03/2015,Travel & Subsistence General Duty,Director of Information Systems,Redfern Travel Ltd,SME,1104603,-13.00,Travel & Subsistence General Duty,Administration
Land Registry,Land Registry,31/03/2015,Travel & Subsistence General Duty,Internal Solutions Group,Redfern Travel Ltd,SME,1104603,"3,168.15",Travel & Subsistence General Duty,Administration
Land Registry,Land Registry,31/03/2015,Travel & Subsistence General Duty,Technology Group,Redfern Travel Ltd,SME,1104603,305.98,Travel & Subsistence General Duty,Administration
Land Registry,Land Registry,31/03/2015,Travel & Subsistence General Duty,IS Service Delivery,Redfern Travel Ltd,SME,1104603,"3,200.53",Travel & Subsistence General Duty,Administration
Land Registry,Land Registry,31/03/2015,Travel & Subsistence General Duty,Central Facilities Management Team,Redfern Travel Ltd,SME,1104603,635.33,Travel & Subsistence General Duty,Administration
Land Registry,Land Registry,31/03/2015,Travel & Subsistence General Duty,Property Asset Management Group,Redfern Travel Ltd,SME,1104603,939.60,Travel & Subsistence General Duty,Administration
Land Registry,Land Registry,31/03/2015,Travel & Subsistence General Duty,Business Continuity,Redfern Travel Ltd,SME,1104603,497.17,Travel & Subsistence General Duty,Administration
Land Registry,Land Registry,31/03/2015,Travel & Subsistence General Duty,Dir: Information Systems,Redfern Travel Ltd,SME,1104603,272.41,Travel & Subsistence General Duty,Administration
Land Registry,Land Registry,31/03/2015,Travel & Subsistence General Duty,Dir: (Statutory) Commercial & Customer,Redfern Travel Ltd,SME,1104603,"3,407.16",Travel & Subsistence General Duty,Administration
Land Registry,Land Registry,31/03/2015,Travel & Subsistence General Duty,LR Connect Portfolio,Redfern Travel Ltd,SME,1104603,"2,236.76",Travel & Subsistence General Duty,Administration
Land Registry,Land Registry,31/03/2015,Travel & Subsistence General Duty,Prog: IT Foundations,Redfern Travel Ltd,SME,1104603,311.53,Travel & Subsistence General Duty,Administration
Land Registry,Land Registry,31/03/2015,Travel & Subsistence General Duty,Prog: People&Organisation,Redfern Travel Ltd,SME,1104603,261.08,Travel & Subsistence General Duty,Administration
Land Registry,Land Registry,31/03/2015,Travel & Subsistence General Duty,Prog: e-Enablement,Redfern Travel Ltd,SME,1104603,728.01,Travel & Subsistence General Duty,Administration
Land Registry,Land Registry,31/03/2015,Travel & Subsistence General Duty,Prog: Digital by Default,Redfern Travel Ltd,SME,1104603,"8,585.15",Travel & Subsistence General Duty,Administration
Land Registry,Land Registry,31/03/2015,Travel & Subsistence General Duty,Commercial Director,Redfern Travel Ltd,SME,1104603,220.25,Travel & Subsistence General Duty,Administration
Land Registry,Land Registry,31/03/2015,Travel & Subsistence General Duty,Business Development,Redfern Travel Ltd,SME,1104603,298.13,Travel & Subsistence General Duty,Administration
Land Registry,Land Registry,31/03/2015,Travel & Subsistence General Duty,Commercial & Customer Strategy & Performance,Redfern Travel Ltd,SME,1104603,620.98,Travel & Subsistence General Duty,Administration
Land Registry,Land Registry,31/03/2015,Travel & Subsistence General Duty,Product Development & Management,Redfern Travel Ltd,SME,1104603,913.05,Travel & Subsistence General Duty,Administration
Land Registry,Land Registry,31/03/2015,Travel & Subsistence General Duty,Marketing Services Team,Redfern Travel Ltd,SME,1104603,216.67,Travel & Subsistence General Duty,Administration
Land Registry,Land Registry,31/03/2015,Travel & Subsistence General Duty,International Unit,Redfern Travel Ltd,SME,1104603,1.18,Travel & Subsistence General Duty,Administration
Land Registry,Land Registry,31/03/2015,Computer Equipment Maintenance,IS Service Delivery,Rocket Software Uk Limited,SME,1104228,"114,200.00",Computer Equipment Maintenance,Administration
Land Registry,Land Registry,31/03/2015,Fixed Asset Interface Account,Balance Sheet,Rocket Software Uk Limited,SME,1104228,"285,800.00",Fixed Asset Interface Account,Administration
Land Registry,Land Registry,31/03/2015,Fixed Asset Interface Account,Balance Sheet,Rocket Software Uk Limited,SME,1104228,"57,160.00",Fixed Asset Interface Account,Administration
Land Registry,Land Registry,18/03/2015,Letter Post,Birkenhead Office,Royal Mail,Large,1103025,"2,190.18",Letter Post,Administration
Land Registry,Land Registry,18/03/2015,Letter Post,Coventry Office,Royal Mail,Large,1103025,"6,873.72",Letter Post,Administration
Land Registry,Land Registry,18/03/2015,Letter Post,Croydon Office,Royal Mail,Large,1103025,"4,418.35",Letter Post,Administration
Land Registry,Land Registry,18/03/2015,Letter Post,Durham Office,Royal Mail,Large,1103025,"5,970.75",Letter Post,Administration
Land Registry,Land Registry,18/03/2015,Letter Post,Gloucester Office,Royal Mail,Large,1103025,"1,979.95",Letter Post,Administration
Land Registry,Land Registry,18/03/2015,Letter Post,Hull Office,Royal Mail,Large,1103025,"2,302.37",Letter Post,Administration
Land Registry,Land Registry,18/03/2015,Letter Post,Fylde Office,Royal Mail,Large,1103025,"2,993.61",Letter Post,Administration
Land Registry,Land Registry,18/03/2015,Letter Post,Leicester Office,Royal Mail,Large,1103025,"1,993.05",Letter Post,Administration
Land Registry,Land Registry,18/03/2015,Letter Post,Nottingham Office,Royal Mail,Large,1103025,"2,839.38",Letter Post,Administration
Land Registry,Land Registry,18/03/2015,Letter Post,Peterborough Office,Royal Mail,Large,1103025,"2,217.46",Letter Post,Administration
Land Registry,Land Registry,18/03/2015,Letter Post,Plymouth Office,Royal Mail,Large,1103025,"3,008.00",Letter Post,Administration
Land Registry,Land Registry,18/03/2015,Letter Post,Telford Office,Royal Mail,Large,1103025,"1,830.35",Letter Post,Administration
Land Registry,Land Registry,18/03/2015,Letter Post,Wales Office,Royal Mail,Large,1103025,"10,895.73",Letter Post,Administration
Land Registry,Land Registry,18/03/2015,Letter Post,Weymouth Office,Royal Mail,Large,1103025,"1,817.65",Letter Post,Administration
Land Registry,Land Registry,18/03/2015,Letter Post,Land Charges,Royal Mail,Large,1103025,"1,002.67",Letter Post,Administration
Land Registry,Land Registry,18/03/2015,Letter Post,IS Service Delivery,Royal Mail,Large,1103025,"13,161.27",Letter Post,Administration
Land Registry,Land Registry,18/03/2015,Parcel and Datapost,Peterborough Office,Royal Mail,Large,1103025,41.07,Parcel and Datapost,Administration
Land Registry,Land Registry,04/03/2015,Major Property Maintenance Projects,Central Facilities Management Team,Sitec Building and Maintenance Ltd,SME,1100779,"63,122.18",Major Property Maintenance,Administration
Land Registry,Land Registry,27/03/2015,Rates Payable,RFS11 - Plymouth,South Hams District Council,Large,1103043,"7,983.00",Rates Payable,Administration
Land Registry,Land Registry,27/03/2015,Rates Payable,Governance & Policy,South Hams District Council,Large,1103042,"4,562.50",Rates Payable,Administration
Land Registry,Land Registry,27/03/2015,Rates Payable,Telford Office,Telford & Wrekin Council,Large,1103039,"25,385.00",Rates Payable,Administration
Land Registry,Land Registry,27/03/2015,Rates Payable,Gloucester Computer Centre,Tewkesbury Borough Council,Large,1101942,"11,780.00",Rates Payable,Administration
Land Registry,Land Registry,09/03/2015,Maps & Plans Data Migration,Forward Scanning,TNT (UK) Ltd,Large,1101434,"214,255.14",Maps & Plans Data Migration,Administration
Land Registry,Land Registry,16/03/2015,Maps & Plans Data Migration,Forward Scanning,TNT (UK) Ltd,Large,1102503,"203,623.33",Maps & Plans Data Migration,Administration
Land Registry,Land Registry,24/03/2015,RFS Outsourced Services,Central RFS,TNT (UK) Ltd,Large,1103442,"104,476.10",Regional File Store Outsourced Services,Administration
Land Registry,Land Registry,24/03/2015,RFS Outsourced Services,Central RFS,TNT (UK) Ltd,Large,1103444,"188,116.21",Regional File Store Outsourced Services,Administration
Land Registry,Land Registry,19/03/2015,Computer Equipment Maintenance,IS Service Delivery,Vanguard Integrity Professionals Ltd,Large,1103058,"26,613.00",Computer Equipment Maintenance,Administration
Land Registry,Land Registry,09/03/2015,Data Network Lines,IS Service Delivery,Vodafone Corporate Ltd,Large,1100777,"-47,681.37",Data Network Lines,Administration
Land Registry,Land Registry,09/03/2015,Data Network Lines,IS Service Delivery,Vodafone Corporate Ltd,Large,1086007,"108,695.86",Data Network Lines,Administration
Land Registry,Land Registry,20/03/2015,Computer Equipment Consumables,Birkenhead Office,XMA Limited,Large,1103426,82.83,Computer Equipment Consumables,Administration
Land Registry,Land Registry,20/03/2015,Computer Equipment Consumables,Birkenhead Office,XMA Limited,Large,1103426,16.56,Computer Equipment Consumables,Administration
Land Registry,Land Registry,20/03/2015,Computer Equipment Consumables,Coventry Office,XMA Limited,Large,1103426,"6,452.84",Computer Equipment Consumables,Administration
Land Registry,Land Registry,20/03/2015,Computer Equipment Consumables,Coventry Office,XMA Limited,Large,1103426,"1,290.56",Computer Equipment Consumables,Administration
Land Registry,Land Registry,20/03/2015,Computer Equipment Consumables,Croydon Office,XMA Limited,Large,1103426,436.81,Computer Equipment Consumables,Administration
Land Registry,Land Registry,20/03/2015,Computer Equipment Consumables,Croydon Office,XMA Limited,Large,1103426,87.36,Computer Equipment Consumables,Administration
Land Registry,Land Registry,20/03/2015,Computer Equipment Consumables,Durham Office,XMA Limited,Large,1103426,"1,461.46",Computer Equipment Consumables,Administration
Land Registry,Land Registry,20/03/2015,Computer Equipment Consumables,Durham Office,XMA Limited,Large,1103426,292.29,Computer Equipment Consumables,Administration
Land Registry,Land Registry,20/03/2015,Computer Equipment Consumables,Gloucester Office,XMA Limited,Large,1103426,"2,562.95",Computer Equipment Consumables,Administration
Land Registry,Land Registry,20/03/2015,Computer Equipment Consumables,Gloucester Office,XMA Limited,Large,1103426,512.59,Computer Equipment Consumables,Administration
Land Registry,Land Registry,20/03/2015,Computer Equipment Consumables,Hull Office,XMA Limited,Large,1103426,639.87,Computer Equipment Consumables,Administration
Land Registry,Land Registry,20/03/2015,Computer Equipment Consumables,Hull Office,XMA Limited,Large,1103426,127.97,Computer Equipment Consumables,Administration
Land Registry,Land Registry,20/03/2015,Computer Equipment Consumables,Fylde Office,XMA Limited,Large,1103426,"2,356.00",Computer Equipment Consumables,Administration
Land Registry,Land Registry,20/03/2015,Computer Equipment Consumables,Fylde Office,XMA Limited,Large,1103426,471.20,Computer Equipment Consumables,Administration
Land Registry,Land Registry,20/03/2015,Computer Equipment Consumables,Leicester Office,XMA Limited,Large,1103426,"1,463.39",Computer Equipment Consumables,Administration
Land Registry,Land Registry,20/03/2015,Computer Equipment Consumables,Leicester Office,XMA Limited,Large,1103426,292.68,Computer Equipment Consumables,Administration
Land Registry,Land Registry,20/03/2015,Computer Equipment Consumables,Nottingham Office,XMA Limited,Large,1103426,"1,404.04",Computer Equipment Consumables,Administration
Land Registry,Land Registry,20/03/2015,Computer Equipment Consumables,Nottingham Office,XMA Limited,Large,1103426,280.79,Computer Equipment Consumables,Administration
Land Registry,Land Registry,20/03/2015,Computer Equipment Consumables,Plymouth Office,XMA Limited,Large,1103426,"2,795.38",Computer Equipment Consumables,Administration
Land Registry,Land Registry,20/03/2015,Computer Equipment Consumables,Plymouth Office,XMA Limited,Large,1103426,559.08,Computer Equipment Consumables,Administration
Land Registry,Land Registry,20/03/2015,Computer Equipment Consumables,Telford Office,XMA Limited,Large,1103426,"2,627.24",Computer Equipment Consumables,Administration
Land Registry,Land Registry,20/03/2015,Computer Equipment Consumables,Telford Office,XMA Limited,Large,1103426,525.45,Computer Equipment Consumables,Administration
Land Registry,Land Registry,20/03/2015,Computer Equipment Consumables,Wales Office,XMA Limited,Large,1103426,"5,644.22",Computer Equipment Consumables,Administration
Land Registry,Land Registry,20/03/2015,Computer Equipment Consumables,Wales Office,XMA Limited,Large,1103426,"1,128.84",Computer Equipment Consumables,Administration
Land Registry,Land Registry,20/03/2015,Computer Equipment Consumables,Weymouth Office,XMA Limited,Large,1103426,"2,577.65",Computer Equipment Consumables,Administration
Land Registry,Land Registry,20/03/2015,Computer Equipment Consumables,Weymouth Office,XMA Limited,Large,1103426,515.53,Computer Equipment Consumables,Administration
Land Registry,Land Registry,20/03/2015,Computer Equipment Consumables,Internal Solutions Group,XMA Limited,Large,1103426,"5,019.62",Computer Equipment Consumables,Administration
Land Registry,Land Registry,20/03/2015,Computer Equipment Consumables,Internal Solutions Group,XMA Limited,Large,1103426,"1,003.92",Computer Equipment Consumables,Administration
